Department Family,Entity,Date,Expense type,Expense area,Supplier,Transaction number,Amount
DBT,ACAS,31/10/2023,EXTERNAL LEARNING,ODHR,TOTAL POLITICS GROUP,POIN1874,324
DBT,ACAS,31/10/2023,PROFESSIONAL FEES,DDAT,BECHTLE LIMITED,POIN1875,546
DBT,ACAS,19/10/2023,EXTERNAL LEARNING,ODHR,PEOPLE RESULTS LTD,POIN1876,"4,080.00"
DBT,ACAS,19/09/2022,EXTERNAL LEARNING,ODHR,UNIVERSITY OF LEICESTER,POIN1877,"7,600.00"
DBT,ACAS,31/10/2023,PROFESSIONAL FEES,DDAT,BECHTLE LIMITED,POIN1878,546
DBT,ACAS,31/10/2023,PROFESSIONAL FEES,DDAT,BIZZDESIGN UK LTD,POIN1879,843.76
DBT,ACAS,31/10/2023,PROFESSIONAL FEES,DDAT,BIZZDESIGN UK LTD,POIN1879,187.5
DBT,ACAS,31/10/2023,PROFESSIONAL FEES,DDAT,BIZZDESIGN UK LTD,POIN1879,93.76
DBT,ACAS,14/09/2023,PUBLICITY,CAC,AM MEDIA PRODUCTION LTD,POIN1880,570
DBT,ACAS,02/11/2023,CONTRACTOR OFF-PAYROLL IN IR35,STRATEGY,ALEXANDER MANN SOLUTIONS LTD,POIN1882,"22,787.17"
DBT,ACAS,02/11/2023,CONTRACTOR OFF-PAYROLL IN IR35,STRATEGY,ALEXANDER MANN SOLUTIONS LTD,POIN1882,"-22,787.17"
DBT,ACAS,02/11/2023,SOFTWARE & LICENCES,DDAT,DEPARTMENT FOR ENERGY SECURITY,POIN1883,"1,536.06"
DBT,ACAS,02/11/2023,SOFTWARE & LICENCES,DDAT,DEPARTMENT FOR ENERGY SECURITY,POIN1883,"1,536.06"
DBT,ACAS,02/11/2023,SOFTWARE & LICENCES,DDAT,DEPARTMENT FOR ENERGY SECURITY,POIN1883,"1,536.06"
DBT,ACAS,02/11/2023,SOFTWARE & LICENCES,DDAT,DEPARTMENT FOR ENERGY SECURITY,POIN1883,"-1,536.06"
DBT,ACAS,02/11/2023,SOFTWARE & LICENCES,DDAT,DEPARTMENT FOR ENERGY SECURITY,POIN1883,"-1,536.06"
DBT,ACAS,02/11/2023,SOFTWARE & LICENCES,DDAT,DEPARTMENT FOR ENERGY SECURITY,POIN1883,"-1,536.06"
DBT,ACAS,27/10/2023,PROFESSIONAL FEES,DDAT,PANLOGIC LTD,POIN1884,"18,330.00"
DBT,ACAS,31/08/2023,PROFESSIONAL FEES,DISPUTE,LANGUAGE EMPIRE LTD,POIN1885,540
DBT,ACAS,31/08/2023,PROFESSIONAL FEES,ADVICE,LANGUAGE EMPIRE LTD,POIN1885,540
DBT,ACAS,02/11/2023,CONTRACTOR OFF-PAYROLL IN IR35,ODHR,MICHAEL PAGE,POIN1886,"12,790.44"
DBT,ACAS,02/11/2023,AGENCY STAFF,ODHR,MICHAEL PAGE,POIN1887,963.72
DBT,ACAS,30/10/2023,MANAGED SERVICE Off-PAYROLL WK,CAC,MICHAEL PAGE,POIN1888,"1,183.25"
DBT,ACAS,31/10/2023,EXTERNAL LEARNING,ODHR,MEDIA TRAINING LTD,POIN1889,574.8
DBT,ACAS,03/11/2023,EXTERNAL LEARNING,ODHR,J B NICHOLLS,POIN1890,"4,000.00"
DBT,ACAS,06/11/2023,EXTERNAL LEARNING,ODHR,AGILE CHANGE MANAGEMENT LTD,POIN1892,"1,074.00"
DBT,ACAS,05/10/2023,CONTRACTOR OFF-PAYROLL IN IR35,STRATEGY,ALEXANDER MANN SOLUTIONS LTD,POIN1893,"6,300.60"
DBT,ACAS,06/11/2023,AGENCY STAFF,ODHR,MICHAEL PAGE,POIN1894,"1,156.46"
DBT,ACAS,02/11/2023,COURIERS,DDAT,BECHTLE LIMITED,POIN1895,822
DBT,ACAS,31/10/2023,AGENCY STAFF,DDAT,ALEXANDER MANN SOLUTIONS LTD,POIN1896,"4,095.36"
DBT,ACAS,03/11/2023,PROFESSIONAL FEES,DDAT,ASTEC ASSISTIVE TEC SOLUTIONS LTD,POIN1897,600
DBT,ACAS,07/11/2023,MANAGED SERVICE Off-PAYROLL WK,CAC,MICHAEL PAGE,POIN1898,"1,183.25"
DBT,ACAS,31/10/2023,PROFESSIONAL FEES,DDAT,TISSKI LTD,POIN1899,"1,350.00"
DBT,ACAS,06/11/2023,PROFESSIONAL FEES,DDAT,VERSION 1 SOLUTIONS LTD,POIN1900,"6,490.00"
DBT,ACAS,07/11/2023,EXTERNAL LEARNING,ODHR,AGILE CHANGE MANAGEMENT LTD,POIN1901,"1,074.00"
DBT,ACAS,07/11/2023,EXTERNAL LEARNING,ODHR,AGILE CHANGE MANAGEMENT LTD,POIN1901,"1,074.00"
DBT,ACAS,31/10/2023,SOFTWARE & LICENCES,DISPUTE,CABINET OFFICE,POIN1902,"1,578.79"
DBT,ACAS,31/10/2023,PROFESSIONAL FEES,DDAT,TISSKI LTD,POIN1903,"1,800.00"
DBT,ACAS,31/10/2023,PROFESSIONAL FEES,DDAT,TISSKI LTD,POIN1904,"17,100.00"
DBT,ACAS,31/10/2023,PROFESSIONAL FEES,DDAT,TISSKI LTD,POIN1905,"42,075.00"
DBT,ACAS,31/10/2023,PROFESSIONAL FEES,DISPUTE,LANGUAGE EMPIRE LTD,POIN1907,540
DBT,ACAS,31/10/2023,PROFESSIONAL FEES,ADVICE,LANGUAGE EMPIRE LTD,POIN1907,540
DBT,ACAS,09/11/2023,LEARNING RESOURCE MATERIALS,ODHR,ALEXANDER MANN SOLUTIONS LTD,POIN1908,"2,457.22"
DBT,ACAS,09/11/2023,LEARNING RESOURCE MATERIALS,ODHR,ALEXANDER MANN SOLUTIONS LTD,POIN1908,"12,266.50"
DBT,ACAS,09/11/2023,LEARNING RESOURCE MATERIALS,ODHR,ALEXANDER MANN SOLUTIONS LTD,POIN1908,"-2,457.22"
DBT,ACAS,09/11/2023,LEARNING RESOURCE MATERIALS,ODHR,ALEXANDER MANN SOLUTIONS LTD,POIN1908,"-12,266.50"
DBT,ACAS,09/11/2023,LEARNING RESOURCE MATERIALS,ODHR,ALEXANDER MANN SOLUTIONS LTD,POIN1909,"1,575.14"
DBT,ACAS,09/11/2023,LEARNING RESOURCE MATERIALS,ODHR,ALEXANDER MANN SOLUTIONS LTD,POIN1909,"7,761.56"
DBT,ACAS,09/11/2023,LEARNING RESOURCE MATERIALS,ODHR,ALEXANDER MANN SOLUTIONS LTD,POIN1909,"-1,575.14"
DBT,ACAS,09/11/2023,LEARNING RESOURCE MATERIALS,ODHR,ALEXANDER MANN SOLUTIONS LTD,POIN1909,"-7,761.56"
DBT,ACAS,09/11/2023,OCCUPATIONAL HEALTH SERVICE,F&G,ONLINE ERGONOMICS,POIN1910,"1,366.20"
DBT,ACAS,09/11/2023,OCCUPATIONAL HEALTH SERVICE,F&G,ONLINE ERGONOMICS,POIN1910,"-1,366.20"
DBT,ACAS,09/11/2023,CONTRACTOR OFF-PAYROLL IN IR35,STRATEGY,ALEXANDER MANN SOLUTIONS LTD,POIN1911,"3,150.30"
DBT,ACAS,09/11/2023,MANAGED SERVICE Off-PAYROLL WK,ODHR,BEAMANS LIMITED,POIN1912,"15,708.00"
DBT,ACAS,09/11/2023,AGENCY STAFF,DDAT,ALEXANDER MANN SOLUTIONS LTD,POIN1913,"18,477.90"
DBT,ACAS,30/09/2023,PROFESSIONAL FEES,DISPUTE,LANGUAGE EMPIRE LTD,POIN1914,"3,249.78"
DBT,ACAS,30/09/2023,PROFESSIONAL FEES,ADVICE,LANGUAGE EMPIRE LTD,POIN1914,"3,249.79"
DBT,ACAS,31/10/2023,PROFESSIONAL FEES,DISPUTE,LANGUAGE EMPIRE LTD,POIN1915,"3,019.15"
DBT,ACAS,31/10/2023,PROFESSIONAL FEES,ADVICE,LANGUAGE EMPIRE LTD,POIN1915,"3,019.15"
DBT,ACAS,09/11/2023,EXTERNAL LEARNING - CSL,ODHR,KPMG LLP,POIN1916,"2,069.50"
DBT,ACAS,13/11/2023,EXTERNAL LEARNING,ODHR,TOTAL POLITICS GROUP,POIN1917,300
DBT,ACAS,13/11/2023,EXTERNAL LEARNING,ODHR,TOTAL POLITICS GROUP,POIN1918,312
DBT,ACAS,13/11/2023,EXTERNAL LEARNING,ODHR,TOTAL POLITICS GROUP,POIN1918,12
DBT,ACAS,13/11/2023,MANAGED SERVICE Off-PAYROLL WK,CAC,MICHAEL PAGE,POIN1920,"1,183.25"
DBT,ACAS,13/11/2023,IA FEES,F&G,GOVERNMENT INTERNAL AUDIT AGENCY,POIN1921,"15,385.50"
DBT,ACAS,13/11/2023,IA FEES,F&G,GOVERNMENT INTERNAL AUDIT AGENCY,POIN1921,"15,385.50"
DBT,ACAS,13/11/2023,EXTERNAL LEARNING - CSL,ODHR,ERNST & YOUNG LLP,POIN1922,441.2
DBT,ACAS,13/11/2023,EXTERNAL LEARNING - CSL,ODHR,ERNST & YOUNG LLP,POIN1923,441.2
DBT,ACAS,13/11/2023,EXTERNAL LEARNING - CSL,ODHR,ERNST & YOUNG LLP,POIN1924,441.2
DBT,ACAS,13/11/2023,EXTERNAL LEARNING - CSL,ODHR,ERNST & YOUNG LLP,POIN1925,441.2
DBT,ACAS,13/11/2023,EXTERNAL LEARNING - CSL,ODHR,ERNST & YOUNG LLP,POIN1926,638.4
DBT,ACAS,31/10/2023,PROFESSIONAL FEES,DDAT,TISSKI LTD,POIN1927,"3,767.00"
DBT,ACAS,31/10/2023,PROFESSIONAL FEES,DDAT,TISSKI LTD,POIN1927,"7,534.00"
DBT,ACAS,31/10/2023,PROFESSIONAL FEES,DDAT,TISSKI LTD,POIN1927,0.04
DBT,ACAS,01/11/2023,PROFESSIONAL FEES,DDAT,SIRIUS OPEN SOURCE LIMITED,POIN1928,"2,560.87"
DBT,ACAS,30/09/2023,RECORDS STORAGE,DDAT,RESTORE RECORDS MANAGEMENT,POIN1929,272.02
DBT,ACAS,30/09/2023,RECORDS STORAGE,DDAT,RESTORE RECORDS MANAGEMENT,POIN1929,15.47
DBT,ACAS,31/10/2023,RECORDS STORAGE,DDAT,RESTORE RECORDS MANAGEMENT,POIN1930,272.02
DBT,ACAS,31/10/2023,RECORDS STORAGE,DDAT,RESTORE RECORDS MANAGEMENT,POIN1930,125.73
DBT,ACAS,14/11/2023,AGENCY STAFF,ODHR,MICHAEL PAGE,POIN1931,"1,156.46"
DBT,ACAS,09/11/2023,MOBILE PHONES,DDAT,TELEFONICA UK LTD (O2),POIN1932,"3,056.56"
DBT,ACAS,09/11/2023,MOBILE PHONES,DDAT,TELEFONICA UK LTD (O2),POIN1932,339.61
DBT,ACAS,09/11/2023,MOBILE PHONES,DDAT,TELEFONICA UK LTD (O2),POIN1932,8.92
DBT,ACAS,09/11/2023,MOBILE PHONES,DDAT,TELEFONICA UK LTD (O2),POIN1932,0.99
DBT,ACAS,29/09/2023,PROFESSIONAL FEES,DDAT,WYSER LTD,POIN1933,"56,125.34"
DBT,ACAS,29/09/2023,PROFESSIONAL FEES,DDAT,WYSER LTD,POIN1933,"82,297.90"
DBT,ACAS,10/11/2023,OCCUPATIONAL HEALTH SERVICE,F&G,FLEXIFORM BUSINESS FURNITURE LTD,POIN1934,409.19
DBT,ACAS,15/11/2023,OCCUPATIONAL HEALTH SERVICE,F&G,FLEXIFORM BUSINESS FURNITURE LTD,POIN1935,409.19
DBT,ACAS,12/10/2023,CONTRACTOR OFF-PAYROLL IN IR35,STRATEGY,ALEXANDER MANN SOLUTIONS LTD,POIN1936,"3,150.30"
DBT,ACAS,14/11/2023,CONTRACTOR OFF-PAYROLL IN IR35,ODHR,MICHAEL PAGE,POIN1937,"8,526.96"
DBT,ACAS,14/11/2023,EXTERNAL LEARNING,ODHR,BAREFOOT COACHING LTD,POIN1938,"1,800.00"
DBT,ACAS,31/10/2023,PROFESSIONAL FEES,DDAT,TISSKI LTD,POIN1939,"3,150.00"
DBT,ACAS,31/10/2023,PROFESSIONAL FEES,DDAT,TISSKI LTD,POIN1939,"1,800.00"
DBT,ACAS,31/10/2023,PROFESSIONAL FEES,DDAT,TISSKI LTD,POIN1939,900
DBT,ACAS,31/10/2023,PROFESSIONAL FEES,DDAT,TISSKI LTD,POIN1939,"1,800.00"
DBT,ACAS,31/10/2023,PROFESSIONAL FEES,DDAT,WYSER LTD,POIN1940,"38,493.32"
DBT,ACAS,31/10/2023,PROFESSIONAL FEES,DDAT,WYSER LTD,POIN1940,685.72
DBT,ACAS,31/10/2023,PROFESSIONAL FEES,DDAT,WYSER LTD,POIN1941,"55,749.00"
DBT,ACAS,06/11/2023,PROFESSIONAL FEES,F&G,UK SHARED BUSINESS SERVICES LTD,POIN1942,"1,300.00"
DBT,ACAS,20/11/2023,AGENCY STAFF,ODHR,MICHAEL PAGE,POIN1943,"1,156.46"
DBT,ACAS,31/10/2023,CONTRACTOR OFF-PAYROLL IN IR35,STRATEGY,ALEXANDER MANN SOLUTIONS LTD,POIN1944,"3,150.30"
DBT,ACAS,21/11/2023,MANAGED SERVICE Off-PAYROLL WK,CAC,MICHAEL PAGE,POIN1945,"1,183.25"
DBT,ACAS,19/11/2023,PROFESSIONAL FEES,DDAT,BIZZDESIGN UK LTD,POIN1946,"3,600.00"
DBT,ACAS,19/11/2023,PROFESSIONAL FEES,DDAT,BIZZDESIGN UK LTD,POIN1947,"6,750.02"
DBT,ACAS,21/11/2023,PROFESSIONAL FEES,DDAT,ASTEC ASSISTIVE TEC SOLUTIONS LTD,POIN1948,"1,422.00"
DBT,ACAS,13/11/2023,OCCUPATIONAL HEALTH SERVICE,F&G,FLEXIFORM BUSINESS FURNITURE LTD,POIN1949,557.1
DBT,ACAS,13/11/2023,OCCUPATIONAL HEALTH SERVICE,F&G,FLEXIFORM BUSINESS FURNITURE LTD,POIN1950,560.4
DBT,ACAS,20/11/2023,GOVT SOLICITORS FEES,CO,GOVERNMENT LEGAL DEPARTMENT,POIN1951,"3,215.52"
DBT,ACAS,15/11/2023,EXTERNAL LEARNING,ODHR,BELIMINAL LLP,POIN1952,"1,500.00"
DBT,ACAS,16/10/2023,SOFTWARE & LICENCES,DDAT,CANVA UK OPERATIONS LIMITED,POIN1953,"5,574.90"
DBT,ACAS,23/11/2023,AGENCY STAFF,DDAT,ALEXANDER MANN SOLUTIONS LTD,POIN1954,"3,695.58"
DBT,ACAS,23/11/2023,SOFTWARE & LICENCES,DDAT,ZOOM VIDEO COMMUNICATIONS INC,POIN1955,"2,051.35"
DBT,ACAS,23/11/2023,EXTERNAL LEARNING,ODHR,PEOPLE RESULTS LTD,POIN1956,"4,032.00"
DBT,ACAS,24/11/2023,EXTERNAL LEARNING,ODHR,J B NICHOLLS,POIN1957,"4,000.00"
DBT,ACAS,24/11/2023,EXTERNAL LEARNING,ODHR,THE BCF GROUP LTD,POIN1958,954
DBT,ACAS,24/11/2023,EXTERNAL LEARNING,ODHR,THE BCF GROUP LTD,POIN1958,954
DBT,ACAS,01/11/2023,PROFESSIONAL FEES,DDAT,TISSKI LTD,POIN1959,"7,534.00"
DBT,ACAS,27/11/2023,AGENCY STAFF,ODHR,MICHAEL PAGE,POIN1960,"1,156.46"
DBT,ACAS,23/11/2023,SOFTWARE & LICENCES,DDAT,UNIFY HOLDING UK 1 LIMITED,POIN1961,"1,868.62"
DBT,ACAS,23/11/2023,SOFTWARE & LICENCES,DDAT,UNIFY HOLDING UK 1 LIMITED,POIN1961,"2,406.00"
DBT,ACAS,23/11/2023,SOFTWARE & LICENCES,DDAT,UNIFY HOLDING UK 1 LIMITED,POIN1961,"10,008.23"
DBT,ACAS,23/11/2023,TELEPHONES,DDAT,UNIFY HOLDING UK 1 LIMITED,POIN1961,92.5
DBT,ACAS,23/11/2023,TELEPHONES,DDAT,UNIFY HOLDING UK 1 LIMITED,POIN1961,7.81
DBT,ACAS,23/11/2023,PROFESSIONAL FEES,DDAT,UNIFY HOLDING UK 1 LIMITED,POIN1962,"4,930.79"
DBT,ACAS,08/11/2023,OCCUPATIONAL HEALTH SERVICE,F&G,FLEXIFORM BUSINESS FURNITURE LTD,POIN1963,560.4
DBT,ACAS,08/11/2023,OCCUPATIONAL HEALTH SERVICE,F&G,FLEXIFORM BUSINESS FURNITURE LTD,POIN1964,793.8
DBT,ACAS,07/11/2023,OCCUPATIONAL HEALTH SERVICE,F&G,FLEXIFORM BUSINESS FURNITURE LTD,POIN1965,545.4
DBT,ACAS,06/11/2023,OCCUPATIONAL HEALTH SERVICE,F&G,FLEXIFORM BUSINESS FURNITURE LTD,POIN1966,560.4
DBT,ACAS,08/11/2023,OCCUPATIONAL HEALTH SERVICE,F&G,FLEXIFORM BUSINESS FURNITURE LTD,POIN1967,560.4
DBT,ACAS,30/04/2023,PROFESSIONAL FEES,DDAT,VERSION 1 SOLUTIONS LTD,POIN1968,822
DBT,ACAS,24/11/2023,PROFESSIONAL FEES,DDAT,BECHTLE LIMITED,POIN1969,456
DBT,ACAS,24/11/2023,COURIERS,DDAT,BECHTLE LIMITED,POIN1969,"1,890.00"
DBT,ACAS,24/11/2023,COURIERS,DDAT,BECHTLE LIMITED,POIN1969,"5,948.60"
DBT,ACAS,24/11/2023,SYSTEM/EQUIPMENT MAINTENANCE,DDAT,BECHTLE LIMITED,POIN1969,40.92
DBT,ACAS,24/11/2023,COMPUTER HARDWARE,DDAT,BECHTLE LIMITED,POIN1969,648
DBT,ACAS,24/11/2023,COMPUTER HARDWARE,DDAT,BECHTLE LIMITED,POIN1969,72
DBT,ACAS,24/11/2023,PROFESSIONAL FEES,DDAT,BECHTLE LIMITED,POIN1969,"1,140.00"
DBT,ACAS,24/11/2023,COURIERS,DDAT,BECHTLE LIMITED,POIN1969,"2,668.68"
DBT,ACAS,20/11/2023,TELEPHONES,DDAT,BRITISH TELECOMMUNICATIONS PLC,POIN1970,262.44
DBT,ACAS,20/11/2023,TELEPHONES,DDAT,BRITISH TELECOMMUNICATIONS PLC,POIN1970,262.43
DBT,ACAS,20/11/2023,TELEPHONES,DDAT,BRITISH TELECOMMUNICATIONS PLC,POIN1970,262.43
DBT,ACAS,20/11/2023,TELEPHONES,DDAT,BRITISH TELECOMMUNICATIONS PLC,POIN1970,"5,949.48"
DBT,ACAS,20/11/2023,TELEPHONES,DDAT,BRITISH TELECOMMUNICATIONS PLC,POIN1970,"7,020.00"
DBT,ACAS,20/11/2023,TELEPHONES,DDAT,BRITISH TELECOMMUNICATIONS PLC,POIN1970,"7,020.00"
DBT,ACAS,20/11/2023,TELEPHONES,DDAT,BRITISH TELECOMMUNICATIONS PLC,POIN1970,"4,609.19"
DBT,ACAS,20/11/2023,TELEPHONES,DDAT,BRITISH TELECOMMUNICATIONS PLC,POIN1970,"1,768.98"
DBT,ACAS,28/11/2023,EXTERNAL LEARNING,ODHR,TOTAL POLITICS GROUP,POIN1972,150
DBT,ACAS,28/11/2023,EXTERNAL LEARNING,ODHR,TOTAL POLITICS GROUP,POIN1972,150
DBT,ACAS,28/11/2023,OTHER PAYROLL COSTS,F&G,MHR INTERNATIONAL UK LTD,POIN1973,"19,170.60"
DBT,ACAS,30/11/2023,PROFESSIONAL FEES,DDAT,BIG BLUE DOOR,POIN1975,60
DBT,ACAS,30/11/2023,PROFESSIONAL FEES,DDAT,BIG BLUE DOOR,POIN1975,60
DBT,ACAS,30/11/2023,PROFESSIONAL FEES,DDAT,BIG BLUE DOOR,POIN1975,60
DBT,ACAS,30/11/2023,PROFESSIONAL FEES,DDAT,BIG BLUE DOOR,POIN1975,60
DBT,ACAS,30/11/2023,PROFESSIONAL FEES,DDAT,BIG BLUE DOOR,POIN1975,60
DBT,ACAS,30/11/2023,PROFESSIONAL FEES,DDAT,BIG BLUE DOOR,POIN1975,60
DBT,ACAS,30/11/2023,PROFESSIONAL FEES,DDAT,BIG BLUE DOOR,POIN1975,60
DBT,ACAS,30/11/2023,PROFESSIONAL FEES,DDAT,BIG BLUE DOOR,POIN1975,60
DBT,ACAS,30/11/2023,PROFESSIONAL FEES,DDAT,BIG BLUE DOOR,POIN1975,60
DBT,ACAS,30/11/2023,PROFESSIONAL FEES,DDAT,BIG BLUE DOOR,POIN1975,60
DBT,ACAS,30/11/2023,PROFESSIONAL FEES,DDAT,BIG BLUE DOOR,POIN1975,60
DBT,ACAS,30/11/2023,PROFESSIONAL FEES,DDAT,BIG BLUE DOOR,POIN1975,900
DBT,ACAS,30/11/2023,PROFESSIONAL FEES,DDAT,BIG BLUE DOOR,POIN1975,900
DBT,ACAS,30/11/2023,PROFESSIONAL FEES,DDAT,BIG BLUE DOOR,POIN1975,780
DBT,ACAS,30/11/2023,PROFESSIONAL FEES,DDAT,BIG BLUE DOOR,POIN1975,-60
DBT,ACAS,30/11/2023,PROFESSIONAL FEES,DDAT,BIG BLUE DOOR,POIN1975,-60
DBT,ACAS,30/11/2023,PROFESSIONAL FEES,DDAT,BIG BLUE DOOR,POIN1975,-60
DBT,ACAS,30/11/2023,PROFESSIONAL FEES,DDAT,BIG BLUE DOOR,POIN1975,-60
DBT,ACAS,30/11/2023,PROFESSIONAL FEES,DDAT,BIG BLUE DOOR,POIN1975,-60
DBT,ACAS,30/11/2023,PROFESSIONAL FEES,DDAT,BIG BLUE DOOR,POIN1975,-60
DBT,ACAS,30/11/2023,PROFESSIONAL FEES,DDAT,BIG BLUE DOOR,POIN1975,-60
DBT,ACAS,30/11/2023,PROFESSIONAL FEES,DDAT,BIG BLUE DOOR,POIN1975,-60
DBT,ACAS,30/11/2023,PROFESSIONAL FEES,DDAT,BIG BLUE DOOR,POIN1975,-60
DBT,ACAS,30/11/2023,PROFESSIONAL FEES,DDAT,BIG BLUE DOOR,POIN1975,-60
DBT,ACAS,30/11/2023,PROFESSIONAL FEES,DDAT,BIG BLUE DOOR,POIN1975,-60
DBT,ACAS,30/11/2023,PROFESSIONAL FEES,DDAT,BIG BLUE DOOR,POIN1975,-900
DBT,ACAS,30/11/2023,PROFESSIONAL FEES,DDAT,BIG BLUE DOOR,POIN1975,-900
DBT,ACAS,30/11/2023,PROFESSIONAL FEES,DDAT,BIG BLUE DOOR,POIN1975,-780
DBT,ACAS,30/11/2023,HARDWARE ADDITIONS,DDAT,PROBRAND LIMITED,POIN1976,760.94
DBT,ACAS,30/11/2023,HARDWARE ADDITIONS,DDAT,PROBRAND LIMITED,POIN1976,-760.94
DBT,ACAS,30/11/2023,PROFESSIONAL FEES,DDAT,VERSION 1 SOLUTIONS LTD,POIN1977,"23,133.37"
DBT,ACAS,30/11/2023,PROFESSIONAL FEES,DDAT,VERSION 1 SOLUTIONS LTD,POIN1977,"10,800.00"
DBT,ACAS,30/11/2023,PROFESSIONAL FEES,DDAT,VERSION 1 SOLUTIONS LTD,POIN1977,"-23,133.37"
DBT,ACAS,30/11/2023,PROFESSIONAL FEES,DDAT,VERSION 1 SOLUTIONS LTD,POIN1977,"-10,800.00"
DBT,ACAS,30/11/2023,AGENCY STAFF,DDAT,ALEXANDER MANN SOLUTIONS LTD,POIN1978,707.9
DBT,ACAS,30/11/2023,AGENCY STAFF,DDAT,ALEXANDER MANN SOLUTIONS LTD,POIN1978,"2,125.38"
DBT,ACAS,30/11/2023,AGENCY STAFF,DDAT,ALEXANDER MANN SOLUTIONS LTD,POIN1978,-707.9
DBT,ACAS,30/11/2023,AGENCY STAFF,DDAT,ALEXANDER MANN SOLUTIONS LTD,POIN1978,"-2,125.38"
DBT,ACAS,30/11/2023,AGENCY STAFF,DDAT,ALEXANDER MANN SOLUTIONS LTD,POIN1979,"6,696.19"
DBT,ACAS,30/11/2023,AGENCY STAFF,DDAT,ALEXANDER MANN SOLUTIONS LTD,POIN1979,"-6,696.19"
DBT,ACAS,30/11/2023,CONTRACTOR OFF-PAYROLL IN IR35,DDAT,ALEXANDER MANN SOLUTIONS LTD,POIN1980,"4,095.36"
DBT,ACAS,30/11/2023,CONTRACTOR OFF-PAYROLL IN IR35,DDAT,ALEXANDER MANN SOLUTIONS LTD,POIN1980,"-4,095.36"
DBT,ACAS,30/11/2023,CONTRACTOR OFF-PAYROLL IN IR35,DDAT,ALEXANDER MANN SOLUTIONS LTD,POIN1981,787.57
DBT,ACAS,30/11/2023,CONTRACTOR OFF-PAYROLL IN IR35,DDAT,ALEXANDER MANN SOLUTIONS LTD,POIN1981,-787.57
DBT,ACAS,30/11/2023,CONTRACTOR OFF-PAYROLL IN IR35,DDAT,ALEXANDER MANN SOLUTIONS LTD,POIN1982,"9,072.86"
DBT,ACAS,30/11/2023,CONTRACTOR OFF-PAYROLL IN IR35,DDAT,ALEXANDER MANN SOLUTIONS LTD,POIN1982,"-9,072.86"
DBT,ACAS,30/11/2023,CONTRACTOR OFF-PAYROLL IN IR35,DDAT,ALEXANDER MANN SOLUTIONS LTD,POIN1983,"1,575.14"
DBT,ACAS,30/11/2023,CONTRACTOR OFF-PAYROLL IN IR35,DDAT,ALEXANDER MANN SOLUTIONS LTD,POIN1983,"-1,575.14"
DBT,ACAS,30/11/2023,CONTRACTOR OFF-PAYROLL IN IR35,DDAT,ALEXANDER MANN SOLUTIONS LTD,POIN1984,760.32
DBT,ACAS,30/11/2023,CONTRACTOR OFF-PAYROLL IN IR35,DDAT,ALEXANDER MANN SOLUTIONS LTD,POIN1984,-760.32
DBT,ACAS,30/11/2023,AGENCY STAFF,DDAT,ALEXANDER MANN SOLUTIONS LTD,POIN1985,"1,365.12"
DBT,ACAS,30/11/2023,AGENCY STAFF,DDAT,ALEXANDER MANN SOLUTIONS LTD,POIN1985,"5,460.48"
DBT,ACAS,30/11/2023,AGENCY STAFF,DDAT,ALEXANDER MANN SOLUTIONS LTD,POIN1985,"4,046.40"
DBT,ACAS,30/11/2023,AGENCY STAFF,DDAT,ALEXANDER MANN SOLUTIONS LTD,POIN1985,"-1,365.12"
DBT,ACAS,30/11/2023,AGENCY STAFF,DDAT,ALEXANDER MANN SOLUTIONS LTD,POIN1985,"-5,460.48"
DBT,ACAS,30/11/2023,AGENCY STAFF,DDAT,ALEXANDER MANN SOLUTIONS LTD,POIN1985,"-4,046.40"
DBT,ACAS,30/11/2023,PROFESSIONAL FEES,DDAT,SIRIUS OPEN SOURCE LIMITED,POIN1986,"2,560.87"
DBT,ACAS,30/11/2023,PROFESSIONAL FEES,DDAT,SIRIUS OPEN SOURCE LIMITED,POIN1986,"2,560.87"
DBT,ACAS,30/11/2023,PROFESSIONAL FEES,DDAT,SIRIUS OPEN SOURCE LIMITED,POIN1986,"-2,560.87"
DBT,ACAS,30/11/2023,PROFESSIONAL FEES,DDAT,SIRIUS OPEN SOURCE LIMITED,POIN1986,"-2,560.87"
DBT,ACAS,30/11/2023,PROFESSIONAL FEES,DDAT,WYSER LTD,POIN1988,"4,326.22"
DBT,ACAS,30/11/2023,PROFESSIONAL FEES,DDAT,WYSER LTD,POIN1988,"6,343.64"
DBT,ACAS,30/11/2023,PROFESSIONAL FEES,DDAT,WYSER LTD,POIN1988,"-4,326.22"
DBT,ACAS,30/11/2023,PROFESSIONAL FEES,DDAT,WYSER LTD,POIN1988,"-6,343.64"
DBT,ACAS,31/10/2023,RECOGNITION PAYMENTS,CENTRE,EDENRED (UK GROUP ) LTD,PINV2189,"8,200.00"
DBT,ACAS,05/10/2023,EXTERNAL LEARNING,ODHR,DEVELOPING WINNERS IN LIFE LTD,PINV2190,"3,000.00"
DBT,ACAS,09/08/2023,PROFESSIONAL FEES,F&G,GOVERNMENT PROPERTY AGENCY,PINV2191,"6,065.04"
DBT,ACAS,09/08/2023,SERVICE CHARGES,F&G,GOVERNMENT PROPERTY AGENCY,PINV2191,"1,229.16"
DBT,ACAS,09/08/2023,FACILITIES MANAGEMENT,F&G,GOVERNMENT PROPERTY AGENCY,PINV2191,"9,650.40"
DBT,ACAS,09/08/2023,RATES,F&G,GOVERNMENT PROPERTY AGENCY,PINV2191,"5,824.35"
DBT,ACAS,09/08/2023,Lease Liability,F&G,GOVERNMENT PROPERTY AGENCY,PINV2191,"31,500.00"
DBT,ACAS,25/08/2023,Lease Liability,F&G,GOVERNMENT PROPERTY AGENCY,PINV2192,"90,740.87"
DBT,ACAS,19/10/2023,SERVICE CHARGES,F&G,GOVERNMENT PROPERTY AGENCY,PINV2193,"16,723.14"
DBT,ACAS,24/10/2023,Lease Liability,F&G,GOVERNMENT PROPERTY AGENCY,PINV2194,"10,985.80"
DBT,ACAS,24/10/2023,PROFESSIONAL FEES,F&G,GOVERNMENT PROPERTY AGENCY,PINV2195,"7,545.00"
DBT,ACAS,24/10/2023,PROFESSIONAL FEES,F&G,GOVERNMENT PROPERTY AGENCY,PINV2195,"1,467.00"
DBT,ACAS,24/10/2023,SERVICE CHARGES,F&G,GOVERNMENT PROPERTY AGENCY,PINV2196,"6,317.76"
DBT,ACAS,24/10/2023,SERVICE CHARGES,F&G,GOVERNMENT PROPERTY AGENCY,PINV2196,"6,317.76"
DBT,ACAS,24/10/2023,SERVICE CHARGES,F&G,GOVERNMENT PROPERTY AGENCY,PINV2196,"6,317.76"
DBT,ACAS,31/10/2023,AGENCY STAFF,DISPUTE,ALEXANDER MANN SOLUTIONS LTD,PINV2197,324
DBT,ACAS,31/10/2023,OCCUPATIONAL HEALTH SERVICE,ODHR,TP HEALTH LTD,PINV2199,778.8
DBT,ACAS,31/10/2023,OCCUPATIONAL HEALTH SERVICE,ODHR,TP HEALTH LTD,PINV2200,585
DBT,ACAS,31/10/2023,OCCUPATIONAL HEALTH SERVICE,ODHR,TP HEALTH LTD,PINV2200,84
DBT,ACAS,31/10/2023,OCCUPATIONAL HEALTH SERVICE,ODHR,TP HEALTH LTD,PINV2200,42
DBT,ACAS,31/10/2023,HOTEL EXPENSES,STRATEGY,CORPORATE TRAVEL MANAGEMENTLIMITED,PINV2201,345.62
DBT,ACAS,31/10/2023,AGENCY STAFF,DISPUTE,ALEXANDER MANN SOLUTIONS LTD,PINV2203,645.58
DBT,ACAS,06/11/2023,PERSONAL EXPENSE,DISPUTE,NAME / DESCRIPTION WITHHELD,PINV2204,"2,023.04"
DBT,ACAS,16/10/2023,RECOGNITION PAYMENTS,CENTRE,EDENRED (UK GROUP ) LTD,PINV2206,"4,725.00"
DBT,ACAS,30/06/2023,SOFTWARE & LICENCES,F&G,ATAMIS LTD,PINV2207,360
DBT,ACAS,09/11/2023,AGENCY STAFF,DISPUTE,ALEXANDER MANN SOLUTIONS LTD,PINV2210,691.2
DBT,ACAS,30/09/2023,OCCUPATIONAL HEALTH SERVICE,ODHR,TP HEALTH LTD,PINV2211,455
DBT,ACAS,30/09/2023,OCCUPATIONAL HEALTH SERVICE,ODHR,TP HEALTH LTD,PINV2211,126
DBT,ACAS,31/10/2023,PUBLIC TRANSPORT & PARKING,STRATEGY,CORPORATE TRAVEL MANAGEMENTLIMITED,PINV2212,-52.85
DBT,ACAS,31/10/2023,HOTEL EXPENSES,ADVICE,CORPORATE TRAVEL MANAGEMENTLIMITED,PINV2212,-69.17
DBT,ACAS,31/10/2023,HOTEL EXPENSES,ADVICE,CORPORATE TRAVEL MANAGEMENTLIMITED,PINV2212,82.5
DBT,ACAS,31/10/2023,PUBLIC TRANSPORT & PARKING,DDAT,CORPORATE TRAVEL MANAGEMENTLIMITED,PINV2212,132
DBT,ACAS,31/10/2023,PUBLIC TRANSPORT & PARKING,DISPUTE,CORPORATE TRAVEL MANAGEMENTLIMITED,PINV2212,71.1
DBT,ACAS,31/10/2023,HOTEL EXPENSES,DISPUTE,CORPORATE TRAVEL MANAGEMENTLIMITED,PINV2212,62
DBT,ACAS,31/10/2023,PUBLIC TRANSPORT & PARKING,STRATEGY,CORPORATE TRAVEL MANAGEMENTLIMITED,PINV2212,103.9
DBT,ACAS,31/10/2023,PUBLIC TRANSPORT & PARKING,ADVICE,CORPORATE TRAVEL MANAGEMENTLIMITED,PINV2212,57.4
DBT,ACAS,31/10/2023,PUBLIC TRANSPORT & PARKING,DISPUTE,CORPORATE TRAVEL MANAGEMENTLIMITED,PINV2212,51.1
DBT,ACAS,31/10/2023,PUBLIC TRANSPORT & PARKING,DISPUTE,CORPORATE TRAVEL MANAGEMENTLIMITED,PINV2212,118.8
DBT,ACAS,31/10/2023,PUBLIC TRANSPORT & PARKING,F&G,CORPORATE TRAVEL MANAGEMENTLIMITED,PINV2212,-18.2
DBT,ACAS,31/10/2023,PUBLIC TRANSPORT & PARKING,ODHR,CORPORATE TRAVEL MANAGEMENTLIMITED,PINV2212,218
DBT,ACAS,31/10/2023,HOTEL EXPENSES,ODHR,CORPORATE TRAVEL MANAGEMENTLIMITED,PINV2212,80.75
DBT,ACAS,31/10/2023,HOTEL EXPENSES,ODHR,CORPORATE TRAVEL MANAGEMENTLIMITED,PINV2212,84
DBT,ACAS,31/10/2023,HOTEL EXPENSES,ODHR,CORPORATE TRAVEL MANAGEMENTLIMITED,PINV2212,84
DBT,ACAS,31/10/2023,HOTEL EXPENSES,DISPUTE,CORPORATE TRAVEL MANAGEMENTLIMITED,PINV2212,461.63
DBT,ACAS,31/10/2023,HOTEL EXPENSES,ADVICE,CORPORATE TRAVEL MANAGEMENTLIMITED,PINV2212,201.9
DBT,ACAS,31/10/2023,PUBLIC TRANSPORT & PARKING,STRATEGY,CORPORATE TRAVEL MANAGEMENTLIMITED,PINV2212,135.2
DBT,ACAS,31/10/2023,HOTEL EXPENSES,DISPUTE,CORPORATE TRAVEL MANAGEMENTLIMITED,PINV2212,210.4
DBT,ACAS,31/10/2023,HOTEL EXPENSES,STRATEGY,CORPORATE TRAVEL MANAGEMENTLIMITED,PINV2212,310
DBT,ACAS,31/10/2023,PUBLIC TRANSPORT & PARKING,DISPUTE,CORPORATE TRAVEL MANAGEMENTLIMITED,PINV2212,150.9
DBT,ACAS,31/10/2023,HOTEL EXPENSES,ADVICE,CORPORATE TRAVEL MANAGEMENTLIMITED,PINV2212,57.5
DBT,ACAS,31/10/2023,HOTEL EXPENSES,ADVICE,CORPORATE TRAVEL MANAGEMENTLIMITED,PINV2212,57.5
DBT,ACAS,31/10/2023,CO&CAC Non Staff T&S,CAC,CORPORATE TRAVEL MANAGEMENTLIMITED,PINV2212,172.24
DBT,ACAS,31/10/2023,HOTEL EXPENSES,ADVICE,CORPORATE TRAVEL MANAGEMENTLIMITED,PINV2212,57.5
DBT,ACAS,31/10/2023,HOTEL EXPENSES,ADVICE,CORPORATE TRAVEL MANAGEMENTLIMITED,PINV2212,57.5
DBT,ACAS,31/10/2023,PUBLIC TRANSPORT & PARKING,ODHR,CORPORATE TRAVEL MANAGEMENTLIMITED,PINV2212,87.15
DBT,ACAS,31/10/2023,PUBLIC TRANSPORT & PARKING,ADVICE,CORPORATE TRAVEL MANAGEMENTLIMITED,PINV2212,155
DBT,ACAS,31/10/2023,PUBLIC TRANSPORT & PARKING,DISPUTE,CORPORATE TRAVEL MANAGEMENTLIMITED,PINV2212,134.8
DBT,ACAS,31/10/2023,PUBLIC TRANSPORT & PARKING,DISPUTE,CORPORATE TRAVEL MANAGEMENTLIMITED,PINV2212,134.8
DBT,ACAS,31/10/2023,PUBLIC TRANSPORT & PARKING,DISPUTE,CORPORATE TRAVEL MANAGEMENTLIMITED,PINV2212,134.8
DBT,ACAS,31/10/2023,PUBLIC TRANSPORT & PARKING,DISPUTE,CORPORATE TRAVEL MANAGEMENTLIMITED,PINV2212,143.4
DBT,ACAS,31/10/2023,PUBLIC TRANSPORT & PARKING,ADVICE,CORPORATE TRAVEL MANAGEMENTLIMITED,PINV2212,64.1
DBT,ACAS,31/10/2023,PUBLIC TRANSPORT & PARKING,F&G,CORPORATE TRAVEL MANAGEMENTLIMITED,PINV2212,196
DBT,ACAS,31/10/2023,PUBLIC TRANSPORT & PARKING,F&G,CORPORATE TRAVEL MANAGEMENTLIMITED,PINV2212,70.55
DBT,ACAS,31/10/2023,PUBLIC TRANSPORT & PARKING,F&G,CORPORATE TRAVEL MANAGEMENTLIMITED,PINV2212,196
DBT,ACAS,31/10/2023,PUBLIC TRANSPORT & PARKING,F&G,CORPORATE TRAVEL MANAGEMENTLIMITED,PINV2212,51.5
DBT,ACAS,31/10/2023,PUBLIC TRANSPORT & PARKING,ODHR,CORPORATE TRAVEL MANAGEMENTLIMITED,PINV2212,59.9
DBT,ACAS,31/10/2023,PUBLIC TRANSPORT & PARKING,DISPUTE,CORPORATE TRAVEL MANAGEMENTLIMITED,PINV2212,55.8
DBT,ACAS,31/10/2023,PUBLIC TRANSPORT & PARKING,DISPUTE,CORPORATE TRAVEL MANAGEMENTLIMITED,PINV2212,55.8
DBT,ACAS,31/10/2023,PUBLIC TRANSPORT & PARKING,STRATEGY,CORPORATE TRAVEL MANAGEMENTLIMITED,PINV2212,65.8
DBT,ACAS,31/10/2023,PUBLIC TRANSPORT & PARKING,DISPUTE,CORPORATE TRAVEL MANAGEMENTLIMITED,PINV2212,102.5
DBT,ACAS,31/10/2023,PUBLIC TRANSPORT & PARKING,F&G,CORPORATE TRAVEL MANAGEMENTLIMITED,PINV2212,77.2
DBT,ACAS,31/10/2023,PUBLIC TRANSPORT & PARKING,DISPUTE,CORPORATE TRAVEL MANAGEMENTLIMITED,PINV2212,13.6
DBT,ACAS,31/10/2023,PUBLIC TRANSPORT & PARKING,DISPUTE,CORPORATE TRAVEL MANAGEMENTLIMITED,PINV2212,11.2
DBT,ACAS,31/10/2023,PUBLIC TRANSPORT & PARKING,DISPUTE,CORPORATE TRAVEL MANAGEMENTLIMITED,PINV2212,104.9
DBT,ACAS,31/10/2023,PUBLIC TRANSPORT & PARKING,DISPUTE,CORPORATE TRAVEL MANAGEMENTLIMITED,PINV2212,104.9
DBT,ACAS,31/10/2023,PUBLIC TRANSPORT & PARKING,DISPUTE,CORPORATE TRAVEL MANAGEMENTLIMITED,PINV2212,104.9
DBT,ACAS,31/10/2023,PUBLIC TRANSPORT & PARKING,DISPUTE,CORPORATE TRAVEL MANAGEMENTLIMITED,PINV2212,39.7
DBT,ACAS,31/10/2023,PUBLIC TRANSPORT & PARKING,DISPUTE,CORPORATE TRAVEL MANAGEMENTLIMITED,PINV2212,39.7
DBT,ACAS,31/10/2023,PUBLIC TRANSPORT & PARKING,DISPUTE,CORPORATE TRAVEL MANAGEMENTLIMITED,PINV2212,67.5
DBT,ACAS,31/10/2023,PUBLIC TRANSPORT & PARKING,DISPUTE,CORPORATE TRAVEL MANAGEMENTLIMITED,PINV2212,67.5
DBT,ACAS,31/10/2023,PUBLIC TRANSPORT & PARKING,DISPUTE,CORPORATE TRAVEL MANAGEMENTLIMITED,PINV2212,67.5
DBT,ACAS,31/10/2023,HOTEL EXPENSES,DISPUTE,CORPORATE TRAVEL MANAGEMENTLIMITED,PINV2212,85.59
DBT,ACAS,31/10/2023,HOTEL EXPENSES,STRATEGY,CORPORATE TRAVEL MANAGEMENTLIMITED,PINV2212,275.72
DBT,ACAS,31/10/2023,HOTEL EXPENSES,STRATEGY,CORPORATE TRAVEL MANAGEMENTLIMITED,PINV2212,275.72
DBT,ACAS,31/10/2023,HOTEL EXPENSES,DISPUTE,CORPORATE TRAVEL MANAGEMENTLIMITED,PINV2212,153.09
DBT,ACAS,31/10/2023,HOTEL EXPENSES,STRATEGY,CORPORATE TRAVEL MANAGEMENTLIMITED,PINV2212,99.99
DBT,ACAS,31/10/2023,HOTEL EXPENSES,DDAT,CORPORATE TRAVEL MANAGEMENTLIMITED,PINV2212,425.8
DBT,ACAS,31/10/2023,HOTEL EXPENSES,STRATEGY,CORPORATE TRAVEL MANAGEMENTLIMITED,PINV2212,99.99
DBT,ACAS,31/10/2023,HOTEL EXPENSES,ADVICE,CORPORATE TRAVEL MANAGEMENTLIMITED,PINV2212,68.33
DBT,ACAS,31/10/2023,PUBLIC TRANSPORT & PARKING,ADVICE,CORPORATE TRAVEL MANAGEMENTLIMITED,PINV2212,97
DBT,ACAS,31/10/2023,PUBLIC TRANSPORT & PARKING,DISPUTE,CORPORATE TRAVEL MANAGEMENTLIMITED,PINV2212,208.5
DBT,ACAS,31/10/2023,PUBLIC TRANSPORT & PARKING,DISPUTE,CORPORATE TRAVEL MANAGEMENTLIMITED,PINV2212,41.2
DBT,ACAS,31/10/2023,PUBLIC TRANSPORT & PARKING,F&G,CORPORATE TRAVEL MANAGEMENTLIMITED,PINV2212,48.9
DBT,ACAS,31/10/2023,PUBLIC TRANSPORT & PARKING,ODHR,CORPORATE TRAVEL MANAGEMENTLIMITED,PINV2212,222
DBT,ACAS,31/10/2023,PUBLIC TRANSPORT & PARKING,F&G,CORPORATE TRAVEL MANAGEMENTLIMITED,PINV2212,48.9
DBT,ACAS,31/10/2023,PUBLIC TRANSPORT & PARKING,ADVICE,CORPORATE TRAVEL MANAGEMENTLIMITED,PINV2212,320.6
DBT,ACAS,31/10/2023,PUBLIC TRANSPORT & PARKING,ADVICE,CORPORATE TRAVEL MANAGEMENTLIMITED,PINV2212,16.15
DBT,ACAS,31/10/2023,PUBLIC TRANSPORT & PARKING,ADVICE,CORPORATE TRAVEL MANAGEMENTLIMITED,PINV2212,16.15
DBT,ACAS,31/10/2023,PUBLIC TRANSPORT & PARKING,ADVICE,CORPORATE TRAVEL MANAGEMENTLIMITED,PINV2212,288.5
DBT,ACAS,31/10/2023,PUBLIC TRANSPORT & PARKING,ADVICE,CORPORATE TRAVEL MANAGEMENTLIMITED,PINV2212,288.5
DBT,ACAS,31/10/2023,PUBLIC TRANSPORT & PARKING,ODHR,CORPORATE TRAVEL MANAGEMENTLIMITED,PINV2212,82.1
DBT,ACAS,31/10/2023,PUBLIC TRANSPORT & PARKING,DISPUTE,CORPORATE TRAVEL MANAGEMENTLIMITED,PINV2212,77.5
DBT,ACAS,31/10/2023,PUBLIC TRANSPORT & PARKING,DISPUTE,CORPORATE TRAVEL MANAGEMENTLIMITED,PINV2212,125.7
DBT,ACAS,31/10/2023,PUBLIC TRANSPORT & PARKING,ODHR,CORPORATE TRAVEL MANAGEMENTLIMITED,PINV2212,69.2
DBT,ACAS,31/10/2023,PUBLIC TRANSPORT & PARKING,STRATEGY,CORPORATE TRAVEL MANAGEMENTLIMITED,PINV2212,138.95
DBT,ACAS,31/10/2023,HOTEL EXPENSES,ADVICE,CORPORATE TRAVEL MANAGEMENTLIMITED,PINV2212,89.58
DBT,ACAS,31/10/2023,HOTEL EXPENSES,ADVICE,CORPORATE TRAVEL MANAGEMENTLIMITED,PINV2212,102.08
DBT,ACAS,31/10/2023,HOTEL EXPENSES,DDAT,CORPORATE TRAVEL MANAGEMENTLIMITED,PINV2212,568.26
DBT,ACAS,31/10/2023,HOTEL EXPENSES,ADVICE,CORPORATE TRAVEL MANAGEMENTLIMITED,PINV2212,111.08
DBT,ACAS,31/10/2023,HOTEL EXPENSES,DDAT,CORPORATE TRAVEL MANAGEMENTLIMITED,PINV2212,425.8
DBT,ACAS,31/10/2023,HOTEL EXPENSES,DISPUTE,CORPORATE TRAVEL MANAGEMENTLIMITED,PINV2212,81.9
DBT,ACAS,31/10/2023,HOTEL EXPENSES,DISPUTE,CORPORATE TRAVEL MANAGEMENTLIMITED,PINV2212,81.9
DBT,ACAS,31/10/2023,HOTEL EXPENSES,DDAT,CORPORATE TRAVEL MANAGEMENTLIMITED,PINV2212,99
DBT,ACAS,31/10/2023,HOTEL EXPENSES,DDAT,CORPORATE TRAVEL MANAGEMENTLIMITED,PINV2212,96.2
DBT,ACAS,31/10/2023,HOTEL EXPENSES,STRATEGY,CORPORATE TRAVEL MANAGEMENTLIMITED,PINV2212,242.39
DBT,ACAS,31/10/2023,HOTEL EXPENSES,ADVICE,CORPORATE TRAVEL MANAGEMENTLIMITED,PINV2212,322.73
DBT,ACAS,31/10/2023,HOTEL EXPENSES,DDAT,CORPORATE TRAVEL MANAGEMENTLIMITED,PINV2212,425.8
DBT,ACAS,31/10/2023,HOTEL EXPENSES,STRATEGY,CORPORATE TRAVEL MANAGEMENTLIMITED,PINV2212,481.5
DBT,ACAS,31/10/2023,HOTEL EXPENSES,DISPUTE,CORPORATE TRAVEL MANAGEMENTLIMITED,PINV2212,88
DBT,ACAS,31/10/2023,HOTEL EXPENSES,DISPUTE,CORPORATE TRAVEL MANAGEMENTLIMITED,PINV2212,174
DBT,ACAS,31/10/2023,HOTEL EXPENSES,ADVICE,CORPORATE TRAVEL MANAGEMENTLIMITED,PINV2212,68.33
DBT,ACAS,31/10/2023,HOTEL EXPENSES,STRATEGY,CORPORATE TRAVEL MANAGEMENTLIMITED,PINV2212,269.1
DBT,ACAS,31/10/2023,HOTEL EXPENSES,STRATEGY,CORPORATE TRAVEL MANAGEMENTLIMITED,PINV2212,141.42
DBT,ACAS,31/10/2023,HOTEL EXPENSES,ADVICE,CORPORATE TRAVEL MANAGEMENTLIMITED,PINV2212,57.5
DBT,ACAS,31/10/2023,HOTEL EXPENSES,DISPUTE,CORPORATE TRAVEL MANAGEMENTLIMITED,PINV2212,88
DBT,ACAS,31/10/2023,HOTEL EXPENSES,STRATEGY,CORPORATE TRAVEL MANAGEMENTLIMITED,PINV2212,351
DBT,ACAS,31/10/2023,HOTEL EXPENSES,DISPUTE,CORPORATE TRAVEL MANAGEMENTLIMITED,PINV2212,89
DBT,ACAS,31/10/2023,HOTEL EXPENSES,ADVICE,CORPORATE TRAVEL MANAGEMENTLIMITED,PINV2212,73.12
DBT,ACAS,31/10/2023,PUBLIC TRANSPORT & PARKING,ODHR,CORPORATE TRAVEL MANAGEMENTLIMITED,PINV2212,18.2
DBT,ACAS,31/10/2023,HOTEL EXPENSES,ADVICE,CORPORATE TRAVEL MANAGEMENTLIMITED,PINV2212,158.33
DBT,ACAS,31/10/2023,PUBLIC TRANSPORT & PARKING,DISPUTE,CORPORATE TRAVEL MANAGEMENTLIMITED,PINV2212,20
DBT,ACAS,31/10/2023,HOTEL EXPENSES,F&G,CORPORATE TRAVEL MANAGEMENTLIMITED,PINV2212,58.99
DBT,ACAS,31/10/2023,PUBLIC TRANSPORT & PARKING,DISPUTE,CORPORATE TRAVEL MANAGEMENTLIMITED,PINV2212,294.7
DBT,ACAS,31/10/2023,HOTEL EXPENSES,F&G,CORPORATE TRAVEL MANAGEMENTLIMITED,PINV2212,58.99
DBT,ACAS,31/10/2023,HOTEL EXPENSES,F&G,CORPORATE TRAVEL MANAGEMENTLIMITED,PINV2212,58.99
DBT,ACAS,31/10/2023,PUBLIC TRANSPORT & PARKING,DISPUTE,CORPORATE TRAVEL MANAGEMENTLIMITED,PINV2212,47.3
DBT,ACAS,31/10/2023,PUBLIC TRANSPORT & PARKING,F&G,CORPORATE TRAVEL MANAGEMENTLIMITED,PINV2212,-119.5
DBT,ACAS,31/10/2023,PUBLIC TRANSPORT & PARKING,F&G,CORPORATE TRAVEL MANAGEMENTLIMITED,PINV2212,-57.3
DBT,ACAS,31/10/2023,PUBLIC TRANSPORT & PARKING,F&G,CORPORATE TRAVEL MANAGEMENTLIMITED,PINV2212,-153.7
DBT,ACAS,31/10/2023,PUBLIC TRANSPORT & PARKING,ADVICE,CORPORATE TRAVEL MANAGEMENTLIMITED,PINV2212,42
DBT,ACAS,31/10/2023,HOTEL EXPENSES,F&G,CORPORATE TRAVEL MANAGEMENTLIMITED,PINV2212,117.98
DBT,ACAS,31/10/2023,PUBLIC TRANSPORT & PARKING,DISPUTE,CORPORATE TRAVEL MANAGEMENTLIMITED,PINV2212,148.2
DBT,ACAS,31/10/2023,PUBLIC TRANSPORT & PARKING,STRATEGY,CORPORATE TRAVEL MANAGEMENTLIMITED,PINV2212,65.8
DBT,ACAS,31/10/2023,PUBLIC TRANSPORT & PARKING,DISPUTE,CORPORATE TRAVEL MANAGEMENTLIMITED,PINV2212,45.2
DBT,ACAS,31/10/2023,PUBLIC TRANSPORT & PARKING,ODHR,CORPORATE TRAVEL MANAGEMENTLIMITED,PINV2212,93.8
DBT,ACAS,31/10/2023,PUBLIC TRANSPORT & PARKING,ODHR,CORPORATE TRAVEL MANAGEMENTLIMITED,PINV2212,244.7
DBT,ACAS,31/10/2023,PUBLIC TRANSPORT & PARKING,DISPUTE,CORPORATE TRAVEL MANAGEMENTLIMITED,PINV2212,118.4
DBT,ACAS,31/10/2023,PUBLIC TRANSPORT & PARKING,DISPUTE,CORPORATE TRAVEL MANAGEMENTLIMITED,PINV2212,59.8
DBT,ACAS,31/10/2023,HOTEL EXPENSES,DDAT,CORPORATE TRAVEL MANAGEMENTLIMITED,PINV2212,293.56
DBT,ACAS,31/10/2023,PUBLIC TRANSPORT & PARKING,ODHR,CORPORATE TRAVEL MANAGEMENTLIMITED,PINV2212,253.9
DBT,ACAS,31/10/2023,PUBLIC TRANSPORT & PARKING,ADVICE,CORPORATE TRAVEL MANAGEMENTLIMITED,PINV2212,353.8
DBT,ACAS,31/10/2023,PUBLIC TRANSPORT & PARKING,ODHR,CORPORATE TRAVEL MANAGEMENTLIMITED,PINV2212,112.5
DBT,ACAS,31/10/2023,PUBLIC TRANSPORT & PARKING,STRATEGY,CORPORATE TRAVEL MANAGEMENTLIMITED,PINV2212,30.35
DBT,ACAS,31/10/2023,PUBLIC TRANSPORT & PARKING,F&G,CORPORATE TRAVEL MANAGEMENTLIMITED,PINV2212,106.2
DBT,ACAS,31/10/2023,PUBLIC TRANSPORT & PARKING,DISPUTE,CORPORATE TRAVEL MANAGEMENTLIMITED,PINV2212,90.9
DBT,ACAS,31/10/2023,PUBLIC TRANSPORT & PARKING,STRATEGY,CORPORATE TRAVEL MANAGEMENTLIMITED,PINV2212,111.5
DBT,ACAS,31/10/2023,PUBLIC TRANSPORT & PARKING,DISPUTE,CORPORATE TRAVEL MANAGEMENTLIMITED,PINV2212,209.85
DBT,ACAS,31/10/2023,PUBLIC TRANSPORT & PARKING,DISPUTE,CORPORATE TRAVEL MANAGEMENTLIMITED,PINV2212,261.3
DBT,ACAS,31/10/2023,PUBLIC TRANSPORT & PARKING,DISPUTE,CORPORATE TRAVEL MANAGEMENTLIMITED,PINV2212,71.1
DBT,ACAS,31/10/2023,PUBLIC TRANSPORT & PARKING,DDAT,CORPORATE TRAVEL MANAGEMENTLIMITED,PINV2212,103.9
DBT,ACAS,31/10/2023,PUBLIC TRANSPORT & PARKING,F&G,CORPORATE TRAVEL MANAGEMENTLIMITED,PINV2212,67.7
DBT,ACAS,31/10/2023,PUBLIC TRANSPORT & PARKING,ADVICE,CORPORATE TRAVEL MANAGEMENTLIMITED,PINV2212,230.8
DBT,ACAS,31/10/2023,PUBLIC TRANSPORT & PARKING,STRATEGY,CORPORATE TRAVEL MANAGEMENTLIMITED,PINV2212,182.3
DBT,ACAS,31/10/2023,PUBLIC TRANSPORT & PARKING,ADVICE,CORPORATE TRAVEL MANAGEMENTLIMITED,PINV2212,44.2
DBT,ACAS,31/10/2023,PUBLIC TRANSPORT & PARKING,ADVICE,CORPORATE TRAVEL MANAGEMENTLIMITED,PINV2212,44.2
DBT,ACAS,31/10/2023,PUBLIC TRANSPORT & PARKING,ADVICE,CORPORATE TRAVEL MANAGEMENTLIMITED,PINV2212,81.4
DBT,ACAS,31/10/2023,PUBLIC TRANSPORT & PARKING,STRATEGY,CORPORATE TRAVEL MANAGEMENTLIMITED,PINV2212,-21.7
DBT,ACAS,31/10/2023,PUBLIC TRANSPORT & PARKING,STRATEGY,CORPORATE TRAVEL MANAGEMENTLIMITED,PINV2212,-8.5
DBT,ACAS,31/10/2023,PUBLIC TRANSPORT & PARKING,ODHR,CORPORATE TRAVEL MANAGEMENTLIMITED,PINV2212,190.4
DBT,ACAS,31/10/2023,PUBLIC TRANSPORT & PARKING,DISPUTE,CORPORATE TRAVEL MANAGEMENTLIMITED,PINV2212,80.3
DBT,ACAS,31/10/2023,PUBLIC TRANSPORT & PARKING,ODHR,CORPORATE TRAVEL MANAGEMENTLIMITED,PINV2212,146.4
DBT,ACAS,31/10/2023,HOTEL EXPENSES,DDAT,CORPORATE TRAVEL MANAGEMENTLIMITED,PINV2212,88
DBT,ACAS,31/10/2023,PUBLIC TRANSPORT & PARKING,DISPUTE,CORPORATE TRAVEL MANAGEMENTLIMITED,PINV2212,71.1
DBT,ACAS,31/10/2023,PUBLIC TRANSPORT & PARKING,DISPUTE,CORPORATE TRAVEL MANAGEMENTLIMITED,PINV2212,71.1
DBT,ACAS,31/10/2023,PUBLIC TRANSPORT & PARKING,ODHR,CORPORATE TRAVEL MANAGEMENTLIMITED,PINV2212,235.89
DBT,ACAS,31/10/2023,HOTEL EXPENSES,ODHR,CORPORATE TRAVEL MANAGEMENTLIMITED,PINV2212,76.2
DBT,ACAS,31/10/2023,PUBLIC TRANSPORT & PARKING,ODHR,CORPORATE TRAVEL MANAGEMENTLIMITED,PINV2212,188.8
DBT,ACAS,31/10/2023,PUBLIC TRANSPORT & PARKING,ODHR,CORPORATE TRAVEL MANAGEMENTLIMITED,PINV2212,13.4
DBT,ACAS,31/10/2023,HOTEL EXPENSES,STRATEGY,CORPORATE TRAVEL MANAGEMENTLIMITED,PINV2212,75
DBT,ACAS,31/10/2023,HOTEL EXPENSES,STRATEGY,CORPORATE TRAVEL MANAGEMENTLIMITED,PINV2212,88
DBT,ACAS,31/10/2023,HOTEL EXPENSES,ODHR,CORPORATE TRAVEL MANAGEMENTLIMITED,PINV2212,76.2
DBT,ACAS,31/10/2023,PUBLIC TRANSPORT & PARKING,DISPUTE,CORPORATE TRAVEL MANAGEMENTLIMITED,PINV2212,99.5
DBT,ACAS,31/10/2023,PUBLIC TRANSPORT & PARKING,F&G,CORPORATE TRAVEL MANAGEMENTLIMITED,PINV2212,-93.1
DBT,ACAS,31/10/2023,PUBLIC TRANSPORT & PARKING,ODHR,CORPORATE TRAVEL MANAGEMENTLIMITED,PINV2212,185.89
DBT,ACAS,31/10/2023,PUBLIC TRANSPORT & PARKING,ODHR,CORPORATE TRAVEL MANAGEMENTLIMITED,PINV2212,248.4
DBT,ACAS,31/10/2023,PUBLIC TRANSPORT & PARKING,ADVICE,CORPORATE TRAVEL MANAGEMENTLIMITED,PINV2212,90.5
DBT,ACAS,31/10/2023,PUBLIC TRANSPORT & PARKING,F&G,CORPORATE TRAVEL MANAGEMENTLIMITED,PINV2212,422
DBT,ACAS,31/10/2023,PUBLIC TRANSPORT & PARKING,F&G,CORPORATE TRAVEL MANAGEMENTLIMITED,PINV2212,217.7
DBT,ACAS,31/10/2023,PUBLIC TRANSPORT & PARKING,DISPUTE,CORPORATE TRAVEL MANAGEMENTLIMITED,PINV2212,113
DBT,ACAS,31/10/2023,PUBLIC TRANSPORT & PARKING,F&G,CORPORATE TRAVEL MANAGEMENTLIMITED,PINV2212,155.6
DBT,ACAS,31/10/2023,PUBLIC TRANSPORT & PARKING,ODHR,CORPORATE TRAVEL MANAGEMENTLIMITED,PINV2212,220.2
DBT,ACAS,31/10/2023,PUBLIC TRANSPORT & PARKING,STRATEGY,CORPORATE TRAVEL MANAGEMENTLIMITED,PINV2212,41.5
DBT,ACAS,31/10/2023,HOTEL EXPENSES,ODHR,CORPORATE TRAVEL MANAGEMENTLIMITED,PINV2212,86.5
DBT,ACAS,31/10/2023,HOTEL EXPENSES,ADVICE,CORPORATE TRAVEL MANAGEMENTLIMITED,PINV2212,158.33
DBT,ACAS,31/10/2023,HOTEL EXPENSES,ADVICE,CORPORATE TRAVEL MANAGEMENTLIMITED,PINV2212,179.17
DBT,ACAS,31/10/2023,HOTEL EXPENSES,ODHR,CORPORATE TRAVEL MANAGEMENTLIMITED,PINV2212,86.5
DBT,ACAS,31/10/2023,HOTEL EXPENSES,ODHR,CORPORATE TRAVEL MANAGEMENTLIMITED,PINV2212,86.5
DBT,ACAS,31/10/2023,HOTEL EXPENSES,ADVICE,CORPORATE TRAVEL MANAGEMENTLIMITED,PINV2212,179.17
DBT,ACAS,31/10/2023,HOTEL EXPENSES,ADVICE,CORPORATE TRAVEL MANAGEMENTLIMITED,PINV2212,238.33
DBT,ACAS,31/10/2023,HOTEL EXPENSES,ODHR,CORPORATE TRAVEL MANAGEMENTLIMITED,PINV2212,86.5
DBT,ACAS,31/10/2023,HOTEL EXPENSES,ADVICE,CORPORATE TRAVEL MANAGEMENTLIMITED,PINV2212,82.5
DBT,ACAS,31/10/2023,HOTEL EXPENSES,ODHR,CORPORATE TRAVEL MANAGEMENTLIMITED,PINV2212,86.5
DBT,ACAS,31/10/2023,HOTEL EXPENSES,ODHR,CORPORATE TRAVEL MANAGEMENTLIMITED,PINV2212,99.5
DBT,ACAS,31/10/2023,HOTEL EXPENSES,ODHR,CORPORATE TRAVEL MANAGEMENTLIMITED,PINV2212,86.5
DBT,ACAS,31/10/2023,PUBLIC TRANSPORT & PARKING,F&G,CORPORATE TRAVEL MANAGEMENTLIMITED,PINV2212,126.5
DBT,ACAS,31/10/2023,PUBLIC TRANSPORT & PARKING,ADVICE,CORPORATE TRAVEL MANAGEMENTLIMITED,PINV2212,20.9
DBT,ACAS,31/10/2023,PUBLIC TRANSPORT & PARKING,ADVICE,CORPORATE TRAVEL MANAGEMENTLIMITED,PINV2212,40.3
DBT,ACAS,31/10/2023,CO&CAC Non Staff T&S,CAC,CORPORATE TRAVEL MANAGEMENTLIMITED,PINV2212,93.05
DBT,ACAS,31/10/2023,PUBLIC TRANSPORT & PARKING,DISPUTE,CORPORATE TRAVEL MANAGEMENTLIMITED,PINV2212,106.5
DBT,ACAS,31/10/2023,PUBLIC TRANSPORT & PARKING,ADVICE,CORPORATE TRAVEL MANAGEMENTLIMITED,PINV2212,214.4
DBT,ACAS,31/10/2023,PUBLIC TRANSPORT & PARKING,ADVICE,CORPORATE TRAVEL MANAGEMENTLIMITED,PINV2212,119.2
DBT,ACAS,31/10/2023,PUBLIC TRANSPORT & PARKING,DISPUTE,CORPORATE TRAVEL MANAGEMENTLIMITED,PINV2212,62.7
DBT,ACAS,31/10/2023,PUBLIC TRANSPORT & PARKING,DISPUTE,CORPORATE TRAVEL MANAGEMENTLIMITED,PINV2212,47.6
DBT,ACAS,31/10/2023,PUBLIC TRANSPORT & PARKING,STRATEGY,CORPORATE TRAVEL MANAGEMENTLIMITED,PINV2212,199.1
DBT,ACAS,31/10/2023,PUBLIC TRANSPORT & PARKING,DISPUTE,CORPORATE TRAVEL MANAGEMENTLIMITED,PINV2212,81.5
DBT,ACAS,31/10/2023,PUBLIC TRANSPORT & PARKING,DISPUTE,CORPORATE TRAVEL MANAGEMENTLIMITED,PINV2212,39.7
DBT,ACAS,31/10/2023,PUBLIC TRANSPORT & PARKING,DISPUTE,CORPORATE TRAVEL MANAGEMENTLIMITED,PINV2212,25.6
DBT,ACAS,31/10/2023,PUBLIC TRANSPORT & PARKING,ADVICE,CORPORATE TRAVEL MANAGEMENTLIMITED,PINV2212,38.8
DBT,ACAS,31/10/2023,HOTEL EXPENSES,ODHR,CORPORATE TRAVEL MANAGEMENTLIMITED,PINV2212,255.99
DBT,ACAS,31/10/2023,PUBLIC TRANSPORT & PARKING,DISPUTE,CORPORATE TRAVEL MANAGEMENTLIMITED,PINV2212,92.7
DBT,ACAS,31/10/2023,PUBLIC TRANSPORT & PARKING,DDAT,CORPORATE TRAVEL MANAGEMENTLIMITED,PINV2212,275.2
DBT,ACAS,31/10/2023,PUBLIC TRANSPORT & PARKING,DISPUTE,CORPORATE TRAVEL MANAGEMENTLIMITED,PINV2212,59.6
DBT,ACAS,31/10/2023,PUBLIC TRANSPORT & PARKING,DISPUTE,CORPORATE TRAVEL MANAGEMENTLIMITED,PINV2212,53.6
DBT,ACAS,31/10/2023,PUBLIC TRANSPORT & PARKING,DISPUTE,CORPORATE TRAVEL MANAGEMENTLIMITED,PINV2212,53.6
DBT,ACAS,31/10/2023,PUBLIC TRANSPORT & PARKING,DISPUTE,CORPORATE TRAVEL MANAGEMENTLIMITED,PINV2212,104.9
DBT,ACAS,31/10/2023,PUBLIC TRANSPORT & PARKING,STRATEGY,CORPORATE TRAVEL MANAGEMENTLIMITED,PINV2212,61.3
DBT,ACAS,31/10/2023,HOTEL EXPENSES,DISPUTE,CORPORATE TRAVEL MANAGEMENTLIMITED,PINV2212,122
DBT,ACAS,31/10/2023,HOTEL EXPENSES,DISPUTE,CORPORATE TRAVEL MANAGEMENTLIMITED,PINV2212,61
DBT,ACAS,31/10/2023,PUBLIC TRANSPORT & PARKING,F&G,CORPORATE TRAVEL MANAGEMENTLIMITED,PINV2212,102.5
DBT,ACAS,31/10/2023,PUBLIC TRANSPORT & PARKING,F&G,CORPORATE TRAVEL MANAGEMENTLIMITED,PINV2212,-43.9
DBT,ACAS,31/10/2023,PUBLIC TRANSPORT & PARKING,F&G,CORPORATE TRAVEL MANAGEMENTLIMITED,PINV2212,146
DBT,ACAS,31/10/2023,PUBLIC TRANSPORT & PARKING,STRATEGY,CORPORATE TRAVEL MANAGEMENTLIMITED,PINV2212,32.3
DBT,ACAS,31/10/2023,PUBLIC TRANSPORT & PARKING,STRATEGY,CORPORATE TRAVEL MANAGEMENTLIMITED,PINV2212,213.98
DBT,ACAS,31/10/2023,PUBLIC TRANSPORT & PARKING,STRATEGY,CORPORATE TRAVEL MANAGEMENTLIMITED,PINV2212,140.98
DBT,ACAS,31/10/2023,PUBLIC TRANSPORT & PARKING,DISPUTE,CORPORATE TRAVEL MANAGEMENTLIMITED,PINV2212,121.9
DBT,ACAS,31/10/2023,HOTEL EXPENSES,F&G,CORPORATE TRAVEL MANAGEMENTLIMITED,PINV2212,117.98
DBT,ACAS,31/10/2023,PUBLIC TRANSPORT & PARKING,ADVICE,CORPORATE TRAVEL MANAGEMENTLIMITED,PINV2212,99.5
DBT,ACAS,31/10/2023,HOTEL EXPENSES,DISPUTE,CORPORATE TRAVEL MANAGEMENTLIMITED,PINV2212,49
DBT,ACAS,31/10/2023,PUBLIC TRANSPORT & PARKING,F&G,CORPORATE TRAVEL MANAGEMENTLIMITED,PINV2212,-89.4
DBT,ACAS,31/10/2023,PUBLIC TRANSPORT & PARKING,F&G,CORPORATE TRAVEL MANAGEMENTLIMITED,PINV2212,108.85
DBT,ACAS,31/10/2023,PUBLIC TRANSPORT & PARKING,ODHR,CORPORATE TRAVEL MANAGEMENTLIMITED,PINV2212,237.1
DBT,ACAS,31/10/2023,PUBLIC TRANSPORT & PARKING,ADVICE,CORPORATE TRAVEL MANAGEMENTLIMITED,PINV2212,20
DBT,ACAS,31/10/2023,PUBLIC TRANSPORT & PARKING,DDAT,CORPORATE TRAVEL MANAGEMENTLIMITED,PINV2212,137.5
DBT,ACAS,31/10/2023,PUBLIC TRANSPORT & PARKING,DISPUTE,CORPORATE TRAVEL MANAGEMENTLIMITED,PINV2212,105
DBT,ACAS,31/10/2023,HOTEL EXPENSES,DISPUTE,CORPORATE TRAVEL MANAGEMENTLIMITED,PINV2212,58.5
DBT,ACAS,31/10/2023,PUBLIC TRANSPORT & PARKING,DISPUTE,CORPORATE TRAVEL MANAGEMENTLIMITED,PINV2212,105
DBT,ACAS,31/10/2023,HOTEL EXPENSES,DISPUTE,CORPORATE TRAVEL MANAGEMENTLIMITED,PINV2212,169
DBT,ACAS,31/10/2023,HOTEL EXPENSES,DISPUTE,CORPORATE TRAVEL MANAGEMENTLIMITED,PINV2212,63.09
DBT,ACAS,31/10/2023,HOTEL EXPENSES,DISPUTE,CORPORATE TRAVEL MANAGEMENTLIMITED,PINV2212,121
DBT,ACAS,31/10/2023,PUBLIC TRANSPORT & PARKING,ADVICE,CORPORATE TRAVEL MANAGEMENTLIMITED,PINV2212,40.3
DBT,ACAS,31/10/2023,PUBLIC TRANSPORT & PARKING,ADVICE,CORPORATE TRAVEL MANAGEMENTLIMITED,PINV2212,69.6
DBT,ACAS,31/10/2023,PUBLIC TRANSPORT & PARKING,DISPUTE,CORPORATE TRAVEL MANAGEMENTLIMITED,PINV2212,120.6
DBT,ACAS,31/10/2023,PUBLIC TRANSPORT & PARKING,DDAT,CORPORATE TRAVEL MANAGEMENTLIMITED,PINV2212,101
DBT,ACAS,31/10/2023,PUBLIC TRANSPORT & PARKING,DISPUTE,CORPORATE TRAVEL MANAGEMENTLIMITED,PINV2212,72.2
DBT,ACAS,31/10/2023,PUBLIC TRANSPORT & PARKING,CAC,CORPORATE TRAVEL MANAGEMENTLIMITED,PINV2212,369.4
DBT,ACAS,31/10/2023,PUBLIC TRANSPORT & PARKING,F&G,CORPORATE TRAVEL MANAGEMENTLIMITED,PINV2212,55.2
DBT,ACAS,31/10/2023,PUBLIC TRANSPORT & PARKING,DDAT,CORPORATE TRAVEL MANAGEMENTLIMITED,PINV2212,109.9
DBT,ACAS,31/10/2023,PUBLIC TRANSPORT & PARKING,DISPUTE,CORPORATE TRAVEL MANAGEMENTLIMITED,PINV2212,58.7
DBT,ACAS,31/10/2023,PUBLIC TRANSPORT & PARKING,STRATEGY,CORPORATE TRAVEL MANAGEMENTLIMITED,PINV2212,252.3
DBT,ACAS,31/10/2023,PUBLIC TRANSPORT & PARKING,STRATEGY,CORPORATE TRAVEL MANAGEMENTLIMITED,PINV2212,212.4
DBT,ACAS,31/10/2023,PUBLIC TRANSPORT & PARKING,STRATEGY,CORPORATE TRAVEL MANAGEMENTLIMITED,PINV2212,212.4
DBT,ACAS,31/10/2023,PUBLIC TRANSPORT & PARKING,ADVICE,CORPORATE TRAVEL MANAGEMENTLIMITED,PINV2212,80.9
DBT,ACAS,31/10/2023,PUBLIC TRANSPORT & PARKING,DISPUTE,CORPORATE TRAVEL MANAGEMENTLIMITED,PINV2212,51.4
DBT,ACAS,31/10/2023,PUBLIC TRANSPORT & PARKING,F&G,CORPORATE TRAVEL MANAGEMENTLIMITED,PINV2212,190.4
DBT,ACAS,31/10/2023,HOTEL EXPENSES,DISPUTE,CORPORATE TRAVEL MANAGEMENTLIMITED,PINV2212,82.5
DBT,ACAS,31/10/2023,PUBLIC TRANSPORT & PARKING,ODHR,CORPORATE TRAVEL MANAGEMENTLIMITED,PINV2212,54
DBT,ACAS,31/10/2023,HOTEL EXPENSES,DISPUTE,CORPORATE TRAVEL MANAGEMENTLIMITED,PINV2212,80.19
DBT,ACAS,31/10/2023,HOTEL EXPENSES,DISPUTE,CORPORATE TRAVEL MANAGEMENTLIMITED,PINV2212,107
DBT,ACAS,31/10/2023,HOTEL EXPENSES,DISPUTE,CORPORATE TRAVEL MANAGEMENTLIMITED,PINV2212,88
DBT,ACAS,31/10/2023,HOTEL EXPENSES,DISPUTE,CORPORATE TRAVEL MANAGEMENTLIMITED,PINV2212,113
DBT,ACAS,31/10/2023,HOTEL EXPENSES,DISPUTE,CORPORATE TRAVEL MANAGEMENTLIMITED,PINV2212,107
DBT,ACAS,31/10/2023,HOTEL EXPENSES,DISPUTE,CORPORATE TRAVEL MANAGEMENTLIMITED,PINV2212,107.42
DBT,ACAS,31/10/2023,PUBLIC TRANSPORT & PARKING,DISPUTE,CORPORATE TRAVEL MANAGEMENTLIMITED,PINV2212,130.2
DBT,ACAS,31/10/2023,PUBLIC TRANSPORT & PARKING,ADVICE,CORPORATE TRAVEL MANAGEMENTLIMITED,PINV2212,14.7
DBT,ACAS,31/10/2023,PUBLIC TRANSPORT & PARKING,DISPUTE,CORPORATE TRAVEL MANAGEMENTLIMITED,PINV2212,66.9
DBT,ACAS,31/10/2023,PUBLIC TRANSPORT & PARKING,DISPUTE,CORPORATE TRAVEL MANAGEMENTLIMITED,PINV2212,68.4
DBT,ACAS,31/10/2023,PUBLIC TRANSPORT & PARKING,DISPUTE,CORPORATE TRAVEL MANAGEMENTLIMITED,PINV2212,148.2
DBT,ACAS,31/10/2023,PUBLIC TRANSPORT & PARKING,DISPUTE,CORPORATE TRAVEL MANAGEMENTLIMITED,PINV2212,23.6
DBT,ACAS,31/10/2023,HOTEL EXPENSES,F&G,CORPORATE TRAVEL MANAGEMENTLIMITED,PINV2212,117.98
DBT,ACAS,31/10/2023,PUBLIC TRANSPORT & PARKING,DDAT,CORPORATE TRAVEL MANAGEMENTLIMITED,PINV2212,-98.5
DBT,ACAS,31/10/2023,HOTEL EXPENSES,ODHR,CORPORATE TRAVEL MANAGEMENTLIMITED,PINV2212,193
DBT,ACAS,31/10/2023,PUBLIC TRANSPORT & PARKING,ODHR,CORPORATE TRAVEL MANAGEMENTLIMITED,PINV2212,272.6
DBT,ACAS,31/10/2023,PUBLIC TRANSPORT & PARKING,DDAT,CORPORATE TRAVEL MANAGEMENTLIMITED,PINV2212,103.9
DBT,ACAS,31/10/2023,PUBLIC TRANSPORT & PARKING,DDAT,CORPORATE TRAVEL MANAGEMENTLIMITED,PINV2212,30
DBT,ACAS,31/10/2023,PUBLIC TRANSPORT & PARKING,DDAT,CORPORATE TRAVEL MANAGEMENTLIMITED,PINV2212,80.5
DBT,ACAS,31/10/2023,PUBLIC TRANSPORT & PARKING,DDAT,CORPORATE TRAVEL MANAGEMENTLIMITED,PINV2212,23.9
DBT,ACAS,31/10/2023,PUBLIC TRANSPORT & PARKING,ODHR,CORPORATE TRAVEL MANAGEMENTLIMITED,PINV2212,140.2
DBT,ACAS,31/10/2023,PUBLIC TRANSPORT & PARKING,DISPUTE,CORPORATE TRAVEL MANAGEMENTLIMITED,PINV2212,60.5
DBT,ACAS,31/10/2023,PUBLIC TRANSPORT & PARKING,ODHR,CORPORATE TRAVEL MANAGEMENTLIMITED,PINV2212,131
DBT,ACAS,31/10/2023,HOTEL EXPENSES,F&G,CORPORATE TRAVEL MANAGEMENTLIMITED,PINV2212,232.2
DBT,ACAS,31/10/2023,HOTEL EXPENSES,ADVICE,CORPORATE TRAVEL MANAGEMENTLIMITED,PINV2212,88
DBT,ACAS,31/10/2023,HOTEL EXPENSES,ADVICE,CORPORATE TRAVEL MANAGEMENTLIMITED,PINV2212,92.32
DBT,ACAS,31/10/2023,HOTEL EXPENSES,DISPUTE,CORPORATE TRAVEL MANAGEMENTLIMITED,PINV2212,88
DBT,ACAS,31/10/2023,PUBLIC TRANSPORT & PARKING,STRATEGY,CORPORATE TRAVEL MANAGEMENTLIMITED,PINV2212,131.5
DBT,ACAS,31/10/2023,PUBLIC TRANSPORT & PARKING,F&G,CORPORATE TRAVEL MANAGEMENTLIMITED,PINV2212,26.3
DBT,ACAS,31/10/2023,HOTEL EXPENSES,DDAT,CORPORATE TRAVEL MANAGEMENTLIMITED,PINV2212,162
DBT,ACAS,31/10/2023,HOTEL EXPENSES,ODHR,CORPORATE TRAVEL MANAGEMENTLIMITED,PINV2212,78
DBT,ACAS,31/10/2023,HOTEL EXPENSES,ODHR,CORPORATE TRAVEL MANAGEMENTLIMITED,PINV2212,78
DBT,ACAS,31/10/2023,HOTEL EXPENSES,DDAT,CORPORATE TRAVEL MANAGEMENTLIMITED,PINV2212,103.7
DBT,ACAS,31/10/2023,HOTEL EXPENSES,DISPUTE,CORPORATE TRAVEL MANAGEMENTLIMITED,PINV2212,94.59
DBT,ACAS,31/10/2023,HOTEL EXPENSES,DISPUTE,CORPORATE TRAVEL MANAGEMENTLIMITED,PINV2212,109
DBT,ACAS,31/10/2023,PUBLIC TRANSPORT & PARKING,ADVICE,CORPORATE TRAVEL MANAGEMENTLIMITED,PINV2212,-285.2
DBT,ACAS,31/10/2023,PUBLIC TRANSPORT & PARKING,ADVICE,CORPORATE TRAVEL MANAGEMENTLIMITED,PINV2212,84.4
DBT,ACAS,31/10/2023,PUBLIC TRANSPORT & PARKING,F&G,CORPORATE TRAVEL MANAGEMENTLIMITED,PINV2212,276
DBT,ACAS,31/10/2023,PUBLIC TRANSPORT & PARKING,F&G,CORPORATE TRAVEL MANAGEMENTLIMITED,PINV2212,276
DBT,ACAS,31/10/2023,PUBLIC TRANSPORT & PARKING,F&G,CORPORATE TRAVEL MANAGEMENTLIMITED,PINV2212,276
DBT,ACAS,31/10/2023,PUBLIC TRANSPORT & PARKING,F&G,CORPORATE TRAVEL MANAGEMENTLIMITED,PINV2212,276
DBT,ACAS,31/10/2023,PUBLIC TRANSPORT & PARKING,ADVICE,CORPORATE TRAVEL MANAGEMENTLIMITED,PINV2212,72.2
DBT,ACAS,31/10/2023,PUBLIC TRANSPORT & PARKING,DISPUTE,CORPORATE TRAVEL MANAGEMENTLIMITED,PINV2212,99.5
DBT,ACAS,31/10/2023,PUBLIC TRANSPORT & PARKING,DISPUTE,CORPORATE TRAVEL MANAGEMENTLIMITED,PINV2212,60.5
DBT,ACAS,31/10/2023,PUBLIC TRANSPORT & PARKING,ODHR,CORPORATE TRAVEL MANAGEMENTLIMITED,PINV2212,55.2
DBT,ACAS,31/10/2023,PUBLIC TRANSPORT & PARKING,DISPUTE,CORPORATE TRAVEL MANAGEMENTLIMITED,PINV2212,66.8
DBT,ACAS,31/10/2023,PUBLIC TRANSPORT & PARKING,DDAT,CORPORATE TRAVEL MANAGEMENTLIMITED,PINV2212,68.1
DBT,ACAS,31/10/2023,PUBLIC TRANSPORT & PARKING,F&G,CORPORATE TRAVEL MANAGEMENTLIMITED,PINV2212,52.1
DBT,ACAS,31/10/2023,PUBLIC TRANSPORT & PARKING,DISPUTE,CORPORATE TRAVEL MANAGEMENTLIMITED,PINV2212,9.3
DBT,ACAS,31/10/2023,PUBLIC TRANSPORT & PARKING,ADVICE,CORPORATE TRAVEL MANAGEMENTLIMITED,PINV2212,50.4
DBT,ACAS,31/10/2023,PUBLIC TRANSPORT & PARKING,DISPUTE,CORPORATE TRAVEL MANAGEMENTLIMITED,PINV2212,-37.8
DBT,ACAS,31/10/2023,PUBLIC TRANSPORT & PARKING,ODHR,CORPORATE TRAVEL MANAGEMENTLIMITED,PINV2212,-81.5
DBT,ACAS,31/10/2023,PUBLIC TRANSPORT & PARKING,ODHR,CORPORATE TRAVEL MANAGEMENTLIMITED,PINV2212,-97.3
DBT,ACAS,31/10/2023,PUBLIC TRANSPORT & PARKING,ADVICE,CORPORATE TRAVEL MANAGEMENTLIMITED,PINV2212,-39.2
DBT,ACAS,31/10/2023,HOTEL EXPENSES,DISPUTE,CORPORATE TRAVEL MANAGEMENTLIMITED,PINV2212,192.4
DBT,ACAS,31/10/2023,PUBLIC TRANSPORT & PARKING,ODHR,CORPORATE TRAVEL MANAGEMENTLIMITED,PINV2212,147.4
DBT,ACAS,31/10/2023,PUBLIC TRANSPORT & PARKING,STRATEGY,CORPORATE TRAVEL MANAGEMENTLIMITED,PINV2212,316.9
DBT,ACAS,31/10/2023,PUBLIC TRANSPORT & PARKING,ADVICE,CORPORATE TRAVEL MANAGEMENTLIMITED,PINV2212,39.1
DBT,ACAS,31/10/2023,PUBLIC TRANSPORT & PARKING,DISPUTE,CORPORATE TRAVEL MANAGEMENTLIMITED,PINV2212,48.6
DBT,ACAS,31/10/2023,HOTEL EXPENSES,DISPUTE,CORPORATE TRAVEL MANAGEMENTLIMITED,PINV2212,85
DBT,ACAS,31/10/2023,HOTEL EXPENSES,DISPUTE,CORPORATE TRAVEL MANAGEMENTLIMITED,PINV2212,105.3
DBT,ACAS,31/10/2023,PUBLIC TRANSPORT & PARKING,DISPUTE,CORPORATE TRAVEL MANAGEMENTLIMITED,PINV2212,105
DBT,ACAS,31/10/2023,HOTEL EXPENSES,DISPUTE,CORPORATE TRAVEL MANAGEMENTLIMITED,PINV2212,100.42
DBT,ACAS,31/10/2023,HOTEL EXPENSES,DISPUTE,CORPORATE TRAVEL MANAGEMENTLIMITED,PINV2212,85
DBT,ACAS,31/10/2023,HOTEL EXPENSES,DDAT,CORPORATE TRAVEL MANAGEMENTLIMITED,PINV2212,190.08
DBT,ACAS,31/10/2023,PUBLIC TRANSPORT & PARKING,DISPUTE,CORPORATE TRAVEL MANAGEMENTLIMITED,PINV2212,43
DBT,ACAS,31/10/2023,PUBLIC TRANSPORT & PARKING,DISPUTE,CORPORATE TRAVEL MANAGEMENTLIMITED,PINV2212,65.1
DBT,ACAS,31/10/2023,PUBLIC TRANSPORT & PARKING,DISPUTE,CORPORATE TRAVEL MANAGEMENTLIMITED,PINV2212,44.5
DBT,ACAS,31/10/2023,PUBLIC TRANSPORT & PARKING,DISPUTE,CORPORATE TRAVEL MANAGEMENTLIMITED,PINV2212,65.1
DBT,ACAS,31/10/2023,PUBLIC TRANSPORT & PARKING,DISPUTE,CORPORATE TRAVEL MANAGEMENTLIMITED,PINV2212,68.1
DBT,ACAS,31/10/2023,PUBLIC TRANSPORT & PARKING,ODHR,CORPORATE TRAVEL MANAGEMENTLIMITED,PINV2212,-40.7
DBT,ACAS,31/10/2023,PUBLIC TRANSPORT & PARKING,DISPUTE,CORPORATE TRAVEL MANAGEMENTLIMITED,PINV2212,165.7
DBT,ACAS,31/10/2023,PUBLIC TRANSPORT & PARKING,DISPUTE,CORPORATE TRAVEL MANAGEMENTLIMITED,PINV2212,188.6
DBT,ACAS,31/10/2023,PUBLIC TRANSPORT & PARKING,STRATEGY,CORPORATE TRAVEL MANAGEMENTLIMITED,PINV2212,128
DBT,ACAS,31/10/2023,PUBLIC TRANSPORT & PARKING,STRATEGY,CORPORATE TRAVEL MANAGEMENTLIMITED,PINV2212,20.6
DBT,ACAS,31/10/2023,PUBLIC TRANSPORT & PARKING,DISPUTE,CORPORATE TRAVEL MANAGEMENTLIMITED,PINV2212,53.6
DBT,ACAS,31/10/2023,PUBLIC TRANSPORT & PARKING,DISPUTE,CORPORATE TRAVEL MANAGEMENTLIMITED,PINV2212,52.1
DBT,ACAS,31/10/2023,PUBLIC TRANSPORT & PARKING,DISPUTE,CORPORATE TRAVEL MANAGEMENTLIMITED,PINV2212,121.9
DBT,ACAS,31/10/2023,HOTEL EXPENSES,DISPUTE,CORPORATE TRAVEL MANAGEMENTLIMITED,PINV2212,79.5
DBT,ACAS,31/10/2023,HOTEL EXPENSES,DISPUTE,CORPORATE TRAVEL MANAGEMENTLIMITED,PINV2212,79.5
DBT,ACAS,31/10/2023,HOTEL EXPENSES,DISPUTE,CORPORATE TRAVEL MANAGEMENTLIMITED,PINV2212,79.5
DBT,ACAS,31/10/2023,HOTEL EXPENSES,DISPUTE,CORPORATE TRAVEL MANAGEMENTLIMITED,PINV2212,79.5
DBT,ACAS,31/10/2023,HOTEL EXPENSES,DISPUTE,CORPORATE TRAVEL MANAGEMENTLIMITED,PINV2212,122
DBT,ACAS,31/10/2023,PUBLIC TRANSPORT & PARKING,STRATEGY,CORPORATE TRAVEL MANAGEMENTLIMITED,PINV2212,177.8
DBT,ACAS,31/10/2023,PUBLIC TRANSPORT & PARKING,DISPUTE,CORPORATE TRAVEL MANAGEMENTLIMITED,PINV2212,99.5
DBT,ACAS,31/10/2023,PUBLIC TRANSPORT & PARKING,DISPUTE,CORPORATE TRAVEL MANAGEMENTLIMITED,PINV2212,99.5
DBT,ACAS,31/10/2023,PUBLIC TRANSPORT & PARKING,ADVICE,CORPORATE TRAVEL MANAGEMENTLIMITED,PINV2212,14.9
DBT,ACAS,31/10/2023,PUBLIC TRANSPORT & PARKING,ADVICE,CORPORATE TRAVEL MANAGEMENTLIMITED,PINV2212,80.6
DBT,ACAS,31/10/2023,PUBLIC TRANSPORT & PARKING,ADVICE,CORPORATE TRAVEL MANAGEMENTLIMITED,PINV2212,21.6
DBT,ACAS,31/10/2023,PUBLIC TRANSPORT & PARKING,ADVICE,CORPORATE TRAVEL MANAGEMENTLIMITED,PINV2212,49.4
DBT,ACAS,31/10/2023,PUBLIC TRANSPORT & PARKING,ODHR,CORPORATE TRAVEL MANAGEMENTLIMITED,PINV2212,71.9
DBT,ACAS,31/10/2023,PUBLIC TRANSPORT & PARKING,ADVICE,CORPORATE TRAVEL MANAGEMENTLIMITED,PINV2212,217.4
DBT,ACAS,31/10/2023,PUBLIC TRANSPORT & PARKING,ADVICE,CORPORATE TRAVEL MANAGEMENTLIMITED,PINV2212,125.8
DBT,ACAS,31/10/2023,PUBLIC TRANSPORT & PARKING,ADVICE,CORPORATE TRAVEL MANAGEMENTLIMITED,PINV2212,119.1
DBT,ACAS,31/10/2023,PUBLIC TRANSPORT & PARKING,DISPUTE,CORPORATE TRAVEL MANAGEMENTLIMITED,PINV2212,196.8
DBT,ACAS,31/10/2023,PUBLIC TRANSPORT & PARKING,DISPUTE,CORPORATE TRAVEL MANAGEMENTLIMITED,PINV2212,226
DBT,ACAS,31/10/2023,PUBLIC TRANSPORT & PARKING,DISPUTE,CORPORATE TRAVEL MANAGEMENTLIMITED,PINV2212,147.4
DBT,ACAS,31/10/2023,PUBLIC TRANSPORT & PARKING,F&G,CORPORATE TRAVEL MANAGEMENTLIMITED,PINV2212,29.1
DBT,ACAS,31/10/2023,PUBLIC TRANSPORT & PARKING,ADVICE,CORPORATE TRAVEL MANAGEMENTLIMITED,PINV2212,129
DBT,ACAS,31/10/2023,PUBLIC TRANSPORT & PARKING,DISPUTE,CORPORATE TRAVEL MANAGEMENTLIMITED,PINV2212,183.4
DBT,ACAS,31/10/2023,PUBLIC TRANSPORT & PARKING,ADVICE,CORPORATE TRAVEL MANAGEMENTLIMITED,PINV2212,227.3
DBT,ACAS,31/10/2023,PUBLIC TRANSPORT & PARKING,DISPUTE,CORPORATE TRAVEL MANAGEMENTLIMITED,PINV2212,177.8
DBT,ACAS,31/10/2023,PUBLIC TRANSPORT & PARKING,ADVICE,CORPORATE TRAVEL MANAGEMENTLIMITED,PINV2212,14.9
DBT,ACAS,31/10/2023,PUBLIC TRANSPORT & PARKING,DISPUTE,CORPORATE TRAVEL MANAGEMENTLIMITED,PINV2212,17.7
DBT,ACAS,31/10/2023,PUBLIC TRANSPORT & PARKING,DISPUTE,CORPORATE TRAVEL MANAGEMENTLIMITED,PINV2212,48.9
DBT,ACAS,31/10/2023,HOTEL EXPENSES,ADVICE,CORPORATE TRAVEL MANAGEMENTLIMITED,PINV2212,130
DBT,ACAS,31/10/2023,PUBLIC TRANSPORT & PARKING,DISPUTE,CORPORATE TRAVEL MANAGEMENTLIMITED,PINV2212,188.8
DBT,ACAS,31/10/2023,PUBLIC TRANSPORT & PARKING,DISPUTE,CORPORATE TRAVEL MANAGEMENTLIMITED,PINV2212,13.4
DBT,ACAS,31/10/2023,PUBLIC TRANSPORT & PARKING,ODHR,CORPORATE TRAVEL MANAGEMENTLIMITED,PINV2212,188.8
DBT,ACAS,31/10/2023,PUBLIC TRANSPORT & PARKING,ODHR,CORPORATE TRAVEL MANAGEMENTLIMITED,PINV2212,13.4
DBT,ACAS,31/10/2023,PUBLIC TRANSPORT & PARKING,F&G,CORPORATE TRAVEL MANAGEMENTLIMITED,PINV2212,38.9
DBT,ACAS,31/10/2023,PUBLIC TRANSPORT & PARKING,ADVICE,CORPORATE TRAVEL MANAGEMENTLIMITED,PINV2212,50.4
DBT,ACAS,31/10/2023,PUBLIC TRANSPORT & PARKING,STRATEGY,CORPORATE TRAVEL MANAGEMENTLIMITED,PINV2212,326.6
DBT,ACAS,31/10/2023,PUBLIC TRANSPORT & PARKING,ADVICE,CORPORATE TRAVEL MANAGEMENTLIMITED,PINV2212,210.8
DBT,ACAS,31/10/2023,PUBLIC TRANSPORT & PARKING,F&G,CORPORATE TRAVEL MANAGEMENTLIMITED,PINV2212,209.7
DBT,ACAS,31/10/2023,PUBLIC TRANSPORT & PARKING,F&G,CORPORATE TRAVEL MANAGEMENTLIMITED,PINV2212,209.7
DBT,ACAS,31/10/2023,PUBLIC TRANSPORT & PARKING,DDAT,CORPORATE TRAVEL MANAGEMENTLIMITED,PINV2212,247.9
DBT,ACAS,31/10/2023,PUBLIC TRANSPORT & PARKING,ADVICE,CORPORATE TRAVEL MANAGEMENTLIMITED,PINV2212,136.5
DBT,ACAS,31/10/2023,PUBLIC TRANSPORT & PARKING,ODHR,CORPORATE TRAVEL MANAGEMENTLIMITED,PINV2212,117
DBT,ACAS,31/10/2023,PUBLIC TRANSPORT & PARKING,ADVICE,CORPORATE TRAVEL MANAGEMENTLIMITED,PINV2212,120.8
DBT,ACAS,31/10/2023,PUBLIC TRANSPORT & PARKING,STRATEGY,CORPORATE TRAVEL MANAGEMENTLIMITED,PINV2212,113.45
DBT,ACAS,31/10/2023,PUBLIC TRANSPORT & PARKING,STRATEGY,CORPORATE TRAVEL MANAGEMENTLIMITED,PINV2212,109.05
DBT,ACAS,31/10/2023,PUBLIC TRANSPORT & PARKING,ADVICE,CORPORATE TRAVEL MANAGEMENTLIMITED,PINV2212,35
DBT,ACAS,31/10/2023,PUBLIC TRANSPORT & PARKING,ADVICE,CORPORATE TRAVEL MANAGEMENTLIMITED,PINV2212,11.1
DBT,ACAS,31/10/2023,PUBLIC TRANSPORT & PARKING,ADVICE,CORPORATE TRAVEL MANAGEMENTLIMITED,PINV2212,72.7
DBT,ACAS,31/10/2023,PUBLIC TRANSPORT & PARKING,ODHR,CORPORATE TRAVEL MANAGEMENTLIMITED,PINV2212,206.4
DBT,ACAS,31/10/2023,PUBLIC TRANSPORT & PARKING,ODHR,CORPORATE TRAVEL MANAGEMENTLIMITED,PINV2212,-234
DBT,ACAS,31/10/2023,PUBLIC TRANSPORT & PARKING,ADVICE,CORPORATE TRAVEL MANAGEMENTLIMITED,PINV2212,-35.7
DBT,ACAS,31/10/2023,PUBLIC TRANSPORT & PARKING,ADVICE,CORPORATE TRAVEL MANAGEMENTLIMITED,PINV2212,-30.7
DBT,ACAS,31/10/2023,PUBLIC TRANSPORT & PARKING,STRATEGY,CORPORATE TRAVEL MANAGEMENTLIMITED,PINV2212,153.4
DBT,ACAS,31/10/2023,PUBLIC TRANSPORT & PARKING,STRATEGY,CORPORATE TRAVEL MANAGEMENTLIMITED,PINV2212,112
DBT,ACAS,31/10/2023,PUBLIC TRANSPORT & PARKING,ADVICE,CORPORATE TRAVEL MANAGEMENTLIMITED,PINV2212,30.9
DBT,ACAS,31/10/2023,HOTEL EXPENSES,F&G,CORPORATE TRAVEL MANAGEMENTLIMITED,PINV2212,71.1
DBT,ACAS,31/10/2023,HOTEL EXPENSES,ADVICE,CORPORATE TRAVEL MANAGEMENTLIMITED,PINV2212,122
DBT,ACAS,31/10/2023,HOTEL EXPENSES,DISPUTE,CORPORATE TRAVEL MANAGEMENTLIMITED,PINV2212,65
DBT,ACAS,31/10/2023,PUBLIC TRANSPORT & PARKING,F&G,CORPORATE TRAVEL MANAGEMENTLIMITED,PINV2212,96.3
DBT,ACAS,31/10/2023,HOTEL EXPENSES,F&G,CORPORATE TRAVEL MANAGEMENTLIMITED,PINV2212,71.1
DBT,ACAS,31/10/2023,PUBLIC TRANSPORT & PARKING,DDAT,CORPORATE TRAVEL MANAGEMENTLIMITED,PINV2212,275.2
DBT,ACAS,31/10/2023,PUBLIC TRANSPORT & PARKING,ODHR,CORPORATE TRAVEL MANAGEMENTLIMITED,PINV2212,-15.4
DBT,ACAS,31/10/2023,PUBLIC TRANSPORT & PARKING,ADVICE,CORPORATE TRAVEL MANAGEMENTLIMITED,PINV2212,129.9
DBT,ACAS,31/10/2023,PUBLIC TRANSPORT & PARKING,ODHR,CORPORATE TRAVEL MANAGEMENTLIMITED,PINV2212,-28.5
DBT,ACAS,31/10/2023,HOTEL EXPENSES,DDAT,CORPORATE TRAVEL MANAGEMENTLIMITED,PINV2212,425.8
DBT,ACAS,31/10/2023,PUBLIC TRANSPORT & PARKING,ODHR,CORPORATE TRAVEL MANAGEMENTLIMITED,PINV2212,-104.9
DBT,ACAS,31/10/2023,PUBLIC TRANSPORT & PARKING,STRATEGY,CORPORATE TRAVEL MANAGEMENTLIMITED,PINV2212,209.7
DBT,ACAS,31/10/2023,PUBLIC TRANSPORT & PARKING,ADVICE,CORPORATE TRAVEL MANAGEMENTLIMITED,PINV2212,-92.4
DBT,ACAS,31/10/2023,PUBLIC TRANSPORT & PARKING,ADVICE,CORPORATE TRAVEL MANAGEMENTLIMITED,PINV2212,-156.6
DBT,ACAS,31/10/2023,PUBLIC TRANSPORT & PARKING,ADVICE,CORPORATE TRAVEL MANAGEMENTLIMITED,PINV2212,229
DBT,ACAS,31/10/2023,PUBLIC TRANSPORT & PARKING,ODHR,CORPORATE TRAVEL MANAGEMENTLIMITED,PINV2212,219.7
DBT,ACAS,31/10/2023,PUBLIC TRANSPORT & PARKING,DISPUTE,CORPORATE TRAVEL MANAGEMENTLIMITED,PINV2212,42.8
DBT,ACAS,31/10/2023,PUBLIC TRANSPORT & PARKING,ADVICE,CORPORATE TRAVEL MANAGEMENTLIMITED,PINV2212,-115.1
DBT,ACAS,31/10/2023,PUBLIC TRANSPORT & PARKING,STRATEGY,CORPORATE TRAVEL MANAGEMENTLIMITED,PINV2212,176.4
DBT,ACAS,31/10/2023,PUBLIC TRANSPORT & PARKING,STRATEGY,CORPORATE TRAVEL MANAGEMENTLIMITED,PINV2212,87
DBT,ACAS,31/10/2023,HOTEL EXPENSES,STRATEGY,CORPORATE TRAVEL MANAGEMENTLIMITED,PINV2212,165
DBT,ACAS,31/10/2023,HOTEL EXPENSES,ODHR,CORPORATE TRAVEL MANAGEMENTLIMITED,PINV2212,85
DBT,ACAS,31/10/2023,HOTEL EXPENSES,ADVICE,CORPORATE TRAVEL MANAGEMENTLIMITED,PINV2212,82.5
DBT,ACAS,31/10/2023,HOTEL EXPENSES,DISPUTE,CORPORATE TRAVEL MANAGEMENTLIMITED,PINV2212,82.5
DBT,ACAS,31/10/2023,HOTEL EXPENSES,ADVICE,CORPORATE TRAVEL MANAGEMENTLIMITED,PINV2212,125
DBT,ACAS,31/10/2023,HOTEL EXPENSES,DISPUTE,CORPORATE TRAVEL MANAGEMENTLIMITED,PINV2212,87.15
DBT,ACAS,31/10/2023,HOTEL EXPENSES,DISPUTE,CORPORATE TRAVEL MANAGEMENTLIMITED,PINV2212,142
DBT,ACAS,31/10/2023,PUBLIC TRANSPORT & PARKING,STRATEGY,CORPORATE TRAVEL MANAGEMENTLIMITED,PINV2212,403
DBT,ACAS,31/10/2023,PUBLIC TRANSPORT & PARKING,STRATEGY,CORPORATE TRAVEL MANAGEMENTLIMITED,PINV2212,283.4
DBT,ACAS,31/10/2023,PUBLIC TRANSPORT & PARKING,F&G,CORPORATE TRAVEL MANAGEMENTLIMITED,PINV2212,104.3
DBT,ACAS,31/10/2023,PUBLIC TRANSPORT & PARKING,F&G,CORPORATE TRAVEL MANAGEMENTLIMITED,PINV2212,54
DBT,ACAS,31/10/2023,HOTEL EXPENSES,DISPUTE,CORPORATE TRAVEL MANAGEMENTLIMITED,PINV2212,150.4
DBT,ACAS,31/10/2023,HOTEL EXPENSES,DISPUTE,CORPORATE TRAVEL MANAGEMENTLIMITED,PINV2212,152.4
DBT,ACAS,31/10/2023,HOTEL EXPENSES,DISPUTE,CORPORATE TRAVEL MANAGEMENTLIMITED,PINV2212,152.4
DBT,ACAS,31/10/2023,HOTEL EXPENSES,ADVICE,CORPORATE TRAVEL MANAGEMENTLIMITED,PINV2212,64.58
DBT,ACAS,31/10/2023,HOTEL EXPENSES,DDAT,CORPORATE TRAVEL MANAGEMENTLIMITED,PINV2212,95
DBT,ACAS,31/10/2023,PUBLIC TRANSPORT & PARKING,DISPUTE,CORPORATE TRAVEL MANAGEMENTLIMITED,PINV2212,264.1
DBT,ACAS,31/10/2023,HOTEL EXPENSES,DISPUTE,CORPORATE TRAVEL MANAGEMENTLIMITED,PINV2212,73
DBT,ACAS,31/10/2023,PUBLIC TRANSPORT & PARKING,ADVICE,CORPORATE TRAVEL MANAGEMENTLIMITED,PINV2212,64.9
DBT,ACAS,31/10/2023,PUBLIC TRANSPORT & PARKING,STRATEGY,CORPORATE TRAVEL MANAGEMENTLIMITED,PINV2212,15.4
DBT,ACAS,31/10/2023,PUBLIC TRANSPORT & PARKING,STRATEGY,CORPORATE TRAVEL MANAGEMENTLIMITED,PINV2212,42.4
DBT,ACAS,31/10/2023,HOTEL EXPENSES,DISPUTE,CORPORATE TRAVEL MANAGEMENTLIMITED,PINV2212,181.42
DBT,ACAS,31/10/2023,HOTEL EXPENSES,ODHR,CORPORATE TRAVEL MANAGEMENTLIMITED,PINV2212,75.21
DBT,ACAS,31/10/2023,HOTEL EXPENSES,F&G,CORPORATE TRAVEL MANAGEMENTLIMITED,PINV2212,90
DBT,ACAS,31/10/2023,HOTEL EXPENSES,DISPUTE,CORPORATE TRAVEL MANAGEMENTLIMITED,PINV2212,150.4
DBT,ACAS,31/10/2023,HOTEL EXPENSES,ODHR,CORPORATE TRAVEL MANAGEMENTLIMITED,PINV2212,119.79
DBT,ACAS,31/10/2023,HOTEL EXPENSES,STRATEGY,CORPORATE TRAVEL MANAGEMENTLIMITED,PINV2212,165
DBT,ACAS,31/10/2023,HOTEL EXPENSES,STRATEGY,CORPORATE TRAVEL MANAGEMENTLIMITED,PINV2212,182.5
DBT,ACAS,31/10/2023,HOTEL EXPENSES,ODHR,CORPORATE TRAVEL MANAGEMENTLIMITED,PINV2212,119.79
DBT,ACAS,08/11/2023,PROFESSIONAL FEES,DDAT,GAMMA TELECOM LIMITED,PINV2213,"4,629.86"
DBT,ACAS,06/11/2023,EXTERNAL LEARNING,ODHR,ESSENTIALSKILZ,PINV2214,"2,419.20"
DBT,ACAS,02/11/2023,PROFESSIONAL FEES,DDAT,W3 PARTNERSHIP LTD,PINV2215,"3,600.00"
DBT,ACAS,02/11/2023,PROFESSIONAL FEES,DDAT,W3 PARTNERSHIP LTD,PINV2215,"1,198.10"
DBT,ACAS,02/11/2023,PROFESSIONAL FEES,DDAT,W3 PARTNERSHIP LTD,PINV2215,35.62
DBT,ACAS,13/11/2023,REFUNDS,ADVICE,SOUTH WARWICKSHIRE AND WORCESTERSHIRE,PINV2216,270
DBT,ACAS,01/10/2023,PUBLICATIONS AND PERIODICALS,DDAT,CRONER-I LIMITED T/A HR INFORM,PINV2217,"48,150.00"
DBT,ACAS,01/10/2023,TELEPHONES,DDAT,GTT,PINV2218,"3,807.43"
DBT,ACAS,01/10/2023,TELEPHONES,DDAT,GTT,PINV2218,423.05
DBT,ACAS,15/11/2023,SOFTWARE & LICENCES,F&G,IRIS SOFTWARE LTD,PINV2221,877.48
DBT,ACAS,15/11/2023,SOFTWARE & LICENCES,F&G,IRIS SOFTWARE LTD,PINV2222,"1,375.02"
DBT,ACAS,15/11/2023,SOFTWARE & LICENCES,F&G,IRIS SOFTWARE LTD,PINV2226,"1,313.44"
DBT,ACAS,15/11/2023,SOFTWARE & LICENCES,F&G,IRIS SOFTWARE LTD,PINV2227,398.02
DBT,ACAS,15/11/2023,SOFTWARE & LICENCES,F&G,IRIS SOFTWARE LTD,PINV2228,955.22
DBT,ACAS,15/11/2023,SOFTWARE & LICENCES,F&G,IRIS SOFTWARE LTD,PINV2230,597.01
DBT,ACAS,15/11/2023,SOFTWARE & LICENCES,F&G,IRIS SOFTWARE LTD,PINV2231,597.01
DBT,ACAS,15/11/2023,SOFTWARE & LICENCES,F&G,IRIS SOFTWARE LTD,PINV2232,"2,640.06"
DBT,ACAS,15/11/2023,SOFTWARE & LICENCES,F&G,IRIS SOFTWARE LTD,PINV2233,660.02
DBT,ACAS,15/11/2023,SOFTWARE & LICENCES,F&G,IRIS SOFTWARE LTD,PINV2234,660.02
DBT,ACAS,15/11/2023,SOFTWARE & LICENCES,F&G,IRIS SOFTWARE LTD,PINV2235,"1,320.03"
DBT,ACAS,01/11/2023,TELEPHONES,DDAT,GTT,PINV2246,"12,445.93"
DBT,ACAS,01/11/2023,TELEPHONES,DDAT,GTT,PINV2246,"1,382.88"
DBT,ACAS,15/11/2023,RECOGNITION PAYMENTS,CENTRE,EDENRED (UK GROUP ) LTD,PINV2247,"8,525.00"
DBT,ACAS,31/03/2023,OCCUPATIONAL HEALTH SERVICE,F&G,POSTURITE LTD,PINV2250,383.18
DBT,ACAS,01/11/2023,PROFESSIONAL FEES,DDAT,SPROUT SOCIAL,PINV2251,"2,376.35"
DBT,ACAS,20/11/2023,CHILDCARE VOUCHERS,F&G,EDENRED CHILDCARE VOUCHERS LTD,PINV2252,"1,451.00"
DBT,ACAS,17/11/2023,PUBLICITY,STRATEGY,CISION,PINV2265,"2,743.00"
DBT,ACAS,18/10/2023,TRAINERS & GUEST SPEAKERS,ADVICE,IRWIN MITCHELL LLP,PINV2270,"1,200.00"
DBT,ACAS,20/11/2023,GOVT SOLICITORS FEES,ODHR,GOVERNMENT LEGAL DEPARTMENT,PINV2271,"51,446.65"
DBT,ACAS,22/11/2023,REFUNDS,ADVICE,SOUTH WALES POLICE,PINV2273,890.04
DBT,ACAS,23/11/2023,AGENCY STAFF,DISPUTE,ALEXANDER MANN SOLUTIONS LTD,PINV2274,810
DBT,ACAS,25/11/2023,HIRE CAR COSTS,ADVICE,ENTERPRISE RENT-A-CAR,PINV2275,140.45
DBT,ACAS,25/11/2023,HIRE CAR COSTS,DISPUTE,ENTERPRISE RENT-A-CAR,PINV2275,103.96
DBT,ACAS,25/11/2023,HIRE CAR PETROL,DISPUTE,ENTERPRISE RENT-A-CAR,PINV2275,26.29
DBT,ACAS,25/11/2023,HIRE CAR COSTS,ADVICE,ENTERPRISE RENT-A-CAR,PINV2275,134.47
DBT,ACAS,25/11/2023,HIRE CAR COSTS,ADVICE,ENTERPRISE RENT-A-CAR,PINV2275,214.18
DBT,ACAS,25/11/2023,HIRE CAR COSTS,ADVICE,ENTERPRISE RENT-A-CAR,PINV2275,120.29
DBT,ACAS,25/11/2023,HIRE CAR COSTS,DISPUTE,ENTERPRISE RENT-A-CAR,PINV2275,133.06
DBT,ACAS,25/11/2023,HIRE CAR COSTS,ADVICE,ENTERPRISE RENT-A-CAR,PINV2275,102.42
DBT,ACAS,23/11/2023,AGENCY STAFF,DISPUTE,ALEXANDER MANN SOLUTIONS LTD,PINV2276,645.58
DBT,ACAS,23/11/2023,AGENCY STAFF,DISPUTE,ALEXANDER MANN SOLUTIONS LTD,PINV2276,645.58
DBT,ACAS,23/11/2023,AGENCY STAFF,DISPUTE,ALEXANDER MANN SOLUTIONS LTD,PINV2276,645.57
DBT,ACAS,20/11/2023,GOVT SOLICITORS FEES,DISPUTE,GOVERNMENT LEGAL DEPARTMENT,PINV2277,"1,578.96"
DBT,ACAS,25/11/2023,VENUE HIRE (REC VAT),ADVICE,Agiito,PINV2280,600
DBT,ACAS,25/11/2023,VENUE HIRE (REC VAT),ADVICE,Agiito,PINV2280,715
DBT,ACAS,25/11/2023,TEAM MEETINGS,ADVICE,Agiito,PINV2280,473
DBT,ACAS,25/11/2023,VENUE HIRE (REC VAT),ADVICE,Agiito,PINV2280,364
DBT,ACAS,25/11/2023,CATERING,ADVICE,Agiito,PINV2280,208
DBT,ACAS,25/11/2023,CATERING,ADVICE,Agiito,PINV2280,104
DBT,ACAS,25/11/2023,VENUE HIRE (REC VAT),DISPUTE,Agiito,PINV2280,720
DBT,ACAS,03/10/2023,VENUE HIRE (REC VAT),ADVICE,Agiito,PINV2282,"2,250.00"
DBT,ACAS,03/10/2023,VENUE HIRE (REC VAT),ADVICE,Agiito,PINV2282,"1,500.00"
DBT,ACAS,28/11/2023,PHOTOCOPIERS,DDAT,Canon (UK) Ltd,PINV2284,"1,135.74"
DBT,ACAS,28/11/2023,PHOTOCOPIERS,DDAT,Canon (UK) Ltd,PINV2284,126.19
DBT,ACAS,23/11/2023,MEMBERSHIP FEES,F&G,FINANCIAL REPORTING COUNCIL (FRC),PINV2285,459
DBT,ACAS,31/10/2023,PERSONAL EXPENSE,DISPUTE,NAME / DESCRIPTION WITHHELD,EXPS2642,52.46
DBT,ACAS,31/10/2023,PERSONAL EXPENSE,DISPUTE,NAME / DESCRIPTION WITHHELD,EXPS2642,24
DBT,ACAS,31/10/2023,PERSONAL EXPENSE,DISPUTE,NAME / DESCRIPTION WITHHELD,EXPS2642,30.41
DBT,ACAS,31/10/2023,PERSONAL EXPENSE,DISPUTE,NAME / DESCRIPTION WITHHELD,EXPS2642,1.5
DBT,ACAS,31/10/2023,PERSONAL EXPENSE,DISPUTE,NAME / DESCRIPTION WITHHELD,EXPS2642,15
DBT,ACAS,31/10/2023,PERSONAL EXPENSE,DISPUTE,NAME / DESCRIPTION WITHHELD,EXPS2642,105
DBT,ACAS,31/10/2023,PERSONAL EXPENSE,DISPUTE,NAME / DESCRIPTION WITHHELD,EXPS2642,25
DBT,ACAS,31/10/2023,PERSONAL EXPENSE,DISPUTE,NAME / DESCRIPTION WITHHELD,EXPS2642,5
DBT,ACAS,31/10/2023,PERSONAL EXPENSE,DISPUTE,NAME / DESCRIPTION WITHHELD,EXPS2642,35
DBT,ACAS,31/10/2023,PERSONAL EXPENSE,DISPUTE,NAME / DESCRIPTION WITHHELD,EXPS2642,10
DBT,ACAS,31/10/2023,PERSONAL EXPENSE,ADVICE,NAME / DESCRIPTION WITHHELD,EXPS2645,249.75
DBT,ACAS,31/10/2023,PERSONAL EXPENSE,ADVICE,NAME / DESCRIPTION WITHHELD,EXPS2645,3.4
DBT,ACAS,31/10/2023,PERSONAL EXPENSE,ADVICE,NAME / DESCRIPTION WITHHELD,EXPS2645,10
DBT,ACAS,31/10/2023,PERSONAL EXPENSE,ADVICE,NAME / DESCRIPTION WITHHELD,EXPS2645,30
DBT,ACAS,31/10/2023,PERSONAL EXPENSE,ADVICE,NAME / DESCRIPTION WITHHELD,EXPS2645,10
DBT,ACAS,31/10/2023,PERSONAL EXPENSE,ADVICE,NAME / DESCRIPTION WITHHELD,EXPS2647,183.15
DBT,ACAS,31/10/2023,PERSONAL EXPENSE,ADVICE,NAME / DESCRIPTION WITHHELD,EXPS2647,71.55
DBT,ACAS,31/10/2023,PERSONAL EXPENSE,ADVICE,NAME / DESCRIPTION WITHHELD,EXPS2647,5
DBT,ACAS,31/10/2023,PERSONAL EXPENSE,ADVICE,NAME / DESCRIPTION WITHHELD,EXPS2647,15
DBT,ACAS,31/10/2023,PERSONAL EXPENSE,ADVICE,NAME / DESCRIPTION WITHHELD,EXPS2647,10
DBT,ACAS,31/10/2023,PERSONAL EXPENSE,ADVICE,NAME / DESCRIPTION WITHHELD,EXPS2647,10
DBT,ACAS,31/10/2023,PERSONAL EXPENSE,ADVICE,NAME / DESCRIPTION WITHHELD,EXPS2647,10
DBT,ACAS,31/10/2023,PERSONAL EXPENSE,ADVICE,NAME / DESCRIPTION WITHHELD,EXPS2649,208.8
DBT,ACAS,31/10/2023,PERSONAL EXPENSE,ADVICE,NAME / DESCRIPTION WITHHELD,EXPS2649,7.2
DBT,ACAS,31/10/2023,PERSONAL EXPENSE,ADVICE,NAME / DESCRIPTION WITHHELD,EXPS2649,15
DBT,ACAS,31/10/2023,PERSONAL EXPENSE,ADVICE,NAME / DESCRIPTION WITHHELD,EXPS2649,20
DBT,ACAS,31/10/2023,PERSONAL EXPENSE,ADVICE,NAME / DESCRIPTION WITHHELD,EXPS2649,20
DBT,ACAS,31/10/2023,PERSONAL EXPENSE,ADVICE,NAME / DESCRIPTION WITHHELD,EXPS2649,140
DBT,ACAS,27/10/2023,PERSONAL EXPENSE,ADVICE,NAME / DESCRIPTION WITHHELD,EXPS2651,517.95
DBT,ACAS,27/10/2023,PERSONAL EXPENSE,ADVICE,NAME / DESCRIPTION WITHHELD,EXPS2651,16
DBT,ACAS,27/10/2023,PERSONAL EXPENSE,ADVICE,NAME / DESCRIPTION WITHHELD,EXPS2651,14
DBT,ACAS,27/10/2023,PERSONAL EXPENSE,ADVICE,NAME / DESCRIPTION WITHHELD,EXPS2651,20
DBT,ACAS,27/10/2023,PERSONAL EXPENSE,ADVICE,NAME / DESCRIPTION WITHHELD,EXPS2651,140
DBT,ACAS,27/10/2023,PERSONAL EXPENSE,ADVICE,NAME / DESCRIPTION WITHHELD,EXPS2651,25
DBT,ACAS,27/10/2023,PERSONAL EXPENSE,ADVICE,NAME / DESCRIPTION WITHHELD,EXPS2651,30
DBT,ACAS,27/10/2023,PERSONAL EXPENSE,ADVICE,NAME / DESCRIPTION WITHHELD,EXPS2651,10
DBT,ACAS,27/10/2023,PERSONAL EXPENSE,ADVICE,NAME / DESCRIPTION WITHHELD,EXPS2651,60
DBT,ACAS,03/11/2023,PERSONAL EXPENSE,ADVICE,NAME / DESCRIPTION WITHHELD,EXPS2662,319.05
DBT,ACAS,03/11/2023,PERSONAL EXPENSE,ADVICE,NAME / DESCRIPTION WITHHELD,EXPS2662,10
DBT,ACAS,03/11/2023,PERSONAL EXPENSE,ADVICE,NAME / DESCRIPTION WITHHELD,EXPS2662,55
DBT,ACAS,03/11/2023,PERSONAL EXPENSE,ADVICE,NAME / DESCRIPTION WITHHELD,EXPS2662,10
DBT,ACAS,03/11/2023,PERSONAL EXPENSE,ADVICE,NAME / DESCRIPTION WITHHELD,EXPS2663,46.8
DBT,ACAS,03/11/2023,PERSONAL EXPENSE,ADVICE,NAME / DESCRIPTION WITHHELD,EXPS2663,112.5
DBT,ACAS,03/11/2023,PERSONAL EXPENSE,ADVICE,NAME / DESCRIPTION WITHHELD,EXPS2663,86.4
DBT,ACAS,03/11/2023,PERSONAL EXPENSE,ADVICE,NAME / DESCRIPTION WITHHELD,EXPS2663,38.7
DBT,ACAS,03/11/2023,PERSONAL EXPENSE,ADVICE,NAME / DESCRIPTION WITHHELD,EXPS2663,9.6
DBT,ACAS,03/11/2023,PERSONAL EXPENSE,ADVICE,NAME / DESCRIPTION WITHHELD,EXPS2663,39.01
DBT,ACAS,03/11/2023,PERSONAL EXPENSE,ADVICE,NAME / DESCRIPTION WITHHELD,EXPS2663,5
DBT,ACAS,03/11/2023,PERSONAL EXPENSE,ADVICE,NAME / DESCRIPTION WITHHELD,EXPS2663,15
DBT,ACAS,03/11/2023,PERSONAL EXPENSE,ADVICE,NAME / DESCRIPTION WITHHELD,EXPS2663,105
DBT,ACAS,03/11/2023,PERSONAL EXPENSE,ADVICE,NAME / DESCRIPTION WITHHELD,EXPS2663,10
DBT,ACAS,03/11/2023,PERSONAL EXPENSE,ADVICE,NAME / DESCRIPTION WITHHELD,EXPS2663,10
DBT,ACAS,06/11/2023,PERSONAL EXPENSE,ADVICE,NAME / DESCRIPTION WITHHELD,EXPS2666,22.49
DBT,ACAS,06/11/2023,PERSONAL EXPENSE,ADVICE,NAME / DESCRIPTION WITHHELD,EXPS2666,195.3
DBT,ACAS,06/11/2023,PERSONAL EXPENSE,ADVICE,NAME / DESCRIPTION WITHHELD,EXPS2666,50
DBT,ACAS,07/11/2023,PERSONAL EXPENSE,STRATEGY,NAME / DESCRIPTION WITHHELD,EXPS2677,5.6
DBT,ACAS,07/11/2023,PERSONAL EXPENSE,STRATEGY,NAME / DESCRIPTION WITHHELD,EXPS2677,44.5
DBT,ACAS,07/11/2023,PERSONAL EXPENSE,STRATEGY,NAME / DESCRIPTION WITHHELD,EXPS2677,51.7
DBT,ACAS,07/11/2023,PERSONAL EXPENSE,STRATEGY,NAME / DESCRIPTION WITHHELD,EXPS2677,50
DBT,ACAS,07/11/2023,PERSONAL EXPENSE,STRATEGY,NAME / DESCRIPTION WITHHELD,EXPS2677,40
DBT,ACAS,07/11/2023,PERSONAL EXPENSE,STRATEGY,NAME / DESCRIPTION WITHHELD,EXPS2677,50
DBT,ACAS,07/11/2023,PERSONAL EXPENSE,STRATEGY,NAME / DESCRIPTION WITHHELD,EXPS2677,5
DBT,ACAS,07/11/2023,PERSONAL EXPENSE,STRATEGY,NAME / DESCRIPTION WITHHELD,EXPS2677,35
DBT,ACAS,08/11/2023,PERSONAL EXPENSE,DISPUTE,NAME / DESCRIPTION WITHHELD,EXPS2682,269.1
DBT,ACAS,08/11/2023,PERSONAL EXPENSE,DISPUTE,NAME / DESCRIPTION WITHHELD,EXPS2682,20
DBT,ACAS,08/11/2023,PERSONAL EXPENSE,DISPUTE,NAME / DESCRIPTION WITHHELD,EXPS2682,20
DBT,ACAS,08/11/2023,PERSONAL EXPENSE,DISPUTE,NAME / DESCRIPTION WITHHELD,EXPS2682,10
DBT,ACAS,10/11/2023,PERSONAL EXPENSE,ADVICE,NAME / DESCRIPTION WITHHELD,EXPS2692,234.45
DBT,ACAS,10/11/2023,PERSONAL EXPENSE,ADVICE,NAME / DESCRIPTION WITHHELD,EXPS2692,10
DBT,ACAS,10/11/2023,PERSONAL EXPENSE,ADVICE,NAME / DESCRIPTION WITHHELD,EXPS2692,70
DBT,ACAS,10/11/2023,PERSONAL EXPENSE,ADVICE,NAME / DESCRIPTION WITHHELD,EXPS2692,30
DBT,ACAS,10/11/2023,PERSONAL EXPENSE,ADVICE,NAME / DESCRIPTION WITHHELD,EXPS2693,336.6
DBT,ACAS,10/11/2023,PERSONAL EXPENSE,ADVICE,NAME / DESCRIPTION WITHHELD,EXPS2693,40
DBT,ACAS,10/11/2023,PERSONAL EXPENSE,ADVICE,NAME / DESCRIPTION WITHHELD,EXPS2693,40.95
DBT,ACAS,10/11/2023,PERSONAL EXPENSE,ADVICE,NAME / DESCRIPTION WITHHELD,EXPS2693,10
DBT,ACAS,10/11/2023,PERSONAL EXPENSE,ADVICE,NAME / DESCRIPTION WITHHELD,EXPS2693,47.7
DBT,ACAS,10/11/2023,PERSONAL EXPENSE,ADVICE,NAME / DESCRIPTION WITHHELD,EXPS2693,10
DBT,ACAS,10/11/2023,PERSONAL EXPENSE,ADVICE,NAME / DESCRIPTION WITHHELD,EXPS2693,10
DBT,ACAS,10/11/2023,PERSONAL EXPENSE,ADVICE,NAME / DESCRIPTION WITHHELD,EXPS2696,263.7
DBT,ACAS,10/11/2023,PERSONAL EXPENSE,ADVICE,NAME / DESCRIPTION WITHHELD,EXPS2696,22.5
DBT,ACAS,10/11/2023,PERSONAL EXPENSE,ADVICE,NAME / DESCRIPTION WITHHELD,EXPS2696,7.2
DBT,ACAS,10/11/2023,PERSONAL EXPENSE,ADVICE,NAME / DESCRIPTION WITHHELD,EXPS2696,9.15
DBT,ACAS,10/11/2023,PERSONAL EXPENSE,ADVICE,NAME / DESCRIPTION WITHHELD,EXPS2696,7.65
DBT,ACAS,10/11/2023,PERSONAL EXPENSE,ADVICE,NAME / DESCRIPTION WITHHELD,EXPS2696,6
DBT,ACAS,10/11/2023,PERSONAL EXPENSE,ADVICE,NAME / DESCRIPTION WITHHELD,EXPS2696,5
DBT,ACAS,10/11/2023,PERSONAL EXPENSE,ADVICE,NAME / DESCRIPTION WITHHELD,EXPS2696,35
DBT,ACAS,10/11/2023,PERSONAL EXPENSE,ADVICE,NAME / DESCRIPTION WITHHELD,EXPS2696,30
DBT,ACAS,10/11/2023,PERSONAL EXPENSE,ADVICE,NAME / DESCRIPTION WITHHELD,EXPS2696,10
DBT,ACAS,10/11/2023,PERSONAL EXPENSE,ADVICE,NAME / DESCRIPTION WITHHELD,EXPS2696,10
DBT,ACAS,10/11/2023,PERSONAL EXPENSE,ADVICE,NAME / DESCRIPTION WITHHELD,EXPS2696,5
DBT,ACAS,10/11/2023,PERSONAL EXPENSE,ADVICE,NAME / DESCRIPTION WITHHELD,EXPS2696,5
DBT,ACAS,14/11/2023,PERSONAL EXPENSE,DISPUTE,NAME / DESCRIPTION WITHHELD,EXPS2701,169.65
DBT,ACAS,14/11/2023,PERSONAL EXPENSE,DISPUTE,NAME / DESCRIPTION WITHHELD,EXPS2701,25
DBT,ACAS,14/11/2023,PERSONAL EXPENSE,DISPUTE,NAME / DESCRIPTION WITHHELD,EXPS2701,5
DBT,ACAS,14/11/2023,PERSONAL EXPENSE,DISPUTE,NAME / DESCRIPTION WITHHELD,EXPS2701,35
DBT,ACAS,14/11/2023,PERSONAL EXPENSE,DISPUTE,NAME / DESCRIPTION WITHHELD,EXPS2701,25
DBT,ACAS,15/11/2023,PERSONAL EXPENSE,ADVICE,NAME / DESCRIPTION WITHHELD,EXPS2708,108
DBT,ACAS,15/11/2023,PERSONAL EXPENSE,ADVICE,NAME / DESCRIPTION WITHHELD,EXPS2708,51.3
DBT,ACAS,15/11/2023,PERSONAL EXPENSE,ADVICE,NAME / DESCRIPTION WITHHELD,EXPS2708,19.9
DBT,ACAS,15/11/2023,PERSONAL EXPENSE,ADVICE,NAME / DESCRIPTION WITHHELD,EXPS2708,9.95
DBT,ACAS,15/11/2023,PERSONAL EXPENSE,ADVICE,NAME / DESCRIPTION WITHHELD,EXPS2708,5
DBT,ACAS,15/11/2023,PERSONAL EXPENSE,ADVICE,NAME / DESCRIPTION WITHHELD,EXPS2708,10
DBT,ACAS,15/11/2023,PERSONAL EXPENSE,ADVICE,NAME / DESCRIPTION WITHHELD,EXPS2708,10
DBT,ACAS,15/11/2023,PERSONAL EXPENSE,ADVICE,NAME / DESCRIPTION WITHHELD,EXPS2708,10
DBT,ACAS,15/11/2023,PERSONAL EXPENSE,ADVICE,NAME / DESCRIPTION WITHHELD,EXPS2708,35
DBT,ACAS,15/11/2023,PERSONAL EXPENSE,ADVICE,NAME / DESCRIPTION WITHHELD,EXPS2708,70
DBT,ACAS,16/11/2023,PERSONAL EXPENSE,DISPUTE,NAME / DESCRIPTION WITHHELD,EXPS2716,69.75
DBT,ACAS,16/11/2023,PERSONAL EXPENSE,DISPUTE,NAME / DESCRIPTION WITHHELD,EXPS2716,57
DBT,ACAS,16/11/2023,PERSONAL EXPENSE,DISPUTE,NAME / DESCRIPTION WITHHELD,EXPS2716,5
DBT,ACAS,16/11/2023,PERSONAL EXPENSE,DISPUTE,NAME / DESCRIPTION WITHHELD,EXPS2716,10
DBT,ACAS,16/11/2023,PERSONAL EXPENSE,DISPUTE,NAME / DESCRIPTION WITHHELD,EXPS2716,35
DBT,ACAS,16/11/2023,PERSONAL EXPENSE,DISPUTE,NAME / DESCRIPTION WITHHELD,EXPS2716,10
DBT,ACAS,16/11/2023,PERSONAL EXPENSE,DISPUTE,NAME / DESCRIPTION WITHHELD,EXPS2716,3.4
DBT,ACAS,16/11/2023,PERSONAL EXPENSE,DISPUTE,NAME / DESCRIPTION WITHHELD,EXPS2716,10.99
DBT,ACAS,16/11/2023,PERSONAL EXPENSE,DISPUTE,NAME / DESCRIPTION WITHHELD,EXPS2716,5
DBT,ACAS,16/11/2023,PERSONAL EXPENSE,DISPUTE,NAME / DESCRIPTION WITHHELD,EXPS2716,10
DBT,ACAS,16/11/2023,PERSONAL EXPENSE,DISPUTE,NAME / DESCRIPTION WITHHELD,EXPS2716,35
DBT,ACAS,16/11/2023,PERSONAL EXPENSE,DISPUTE,NAME / DESCRIPTION WITHHELD,EXPS2716,10
DBT,ACAS,16/11/2023,PERSONAL EXPENSE,DISPUTE,NAME / DESCRIPTION WITHHELD,EXPS2716,5.6
DBT,ACAS,16/11/2023,PERSONAL EXPENSE,DISPUTE,NAME / DESCRIPTION WITHHELD,EXPS2716,10
DBT,ACAS,16/11/2023,PERSONAL EXPENSE,DISPUTE,NAME / DESCRIPTION WITHHELD,EXPS2716,10
DBT,ACAS,16/11/2023,PERSONAL EXPENSE,DISPUTE,NAME / DESCRIPTION WITHHELD,EXPS2716,2.7
DBT,ACAS,16/11/2023,PERSONAL EXPENSE,DISPUTE,NAME / DESCRIPTION WITHHELD,EXPS2716,25
DBT,ACAS,17/11/2023,PERSONAL EXPENSE,ADVICE,NAME / DESCRIPTION WITHHELD,EXPS2723,591.3
DBT,ACAS,17/11/2023,PERSONAL EXPENSE,ADVICE,NAME / DESCRIPTION WITHHELD,EXPS2723,8
DBT,ACAS,17/11/2023,PERSONAL EXPENSE,ADVICE,NAME / DESCRIPTION WITHHELD,EXPS2723,25
DBT,ACAS,17/11/2023,PERSONAL EXPENSE,ADVICE,NAME / DESCRIPTION WITHHELD,EXPS2723,50
DBT,ACAS,17/11/2023,PERSONAL EXPENSE,ADVICE,NAME / DESCRIPTION WITHHELD,EXPS2723,20
DBT,ACAS,17/11/2023,PERSONAL EXPENSE,ADVICE,NAME / DESCRIPTION WITHHELD,EXPS2723,5
DBT,ACAS,17/11/2023,PERSONAL EXPENSE,ADVICE,NAME / DESCRIPTION WITHHELD,EXPS2723,175
DBT,ACAS,17/11/2023,PERSONAL EXPENSE,ADVICE,NAME / DESCRIPTION WITHHELD,EXPS2723,30
DBT,ACAS,20/11/2023,PERSONAL EXPENSE,ADVICE,NAME / DESCRIPTION WITHHELD,EXPS2729,341.1
DBT,ACAS,20/11/2023,PERSONAL EXPENSE,ODHR,NAME / DESCRIPTION WITHHELD,EXPS2738,18.9
DBT,ACAS,20/11/2023,PERSONAL EXPENSE,ODHR,NAME / DESCRIPTION WITHHELD,EXPS2738,32
DBT,ACAS,20/11/2023,PERSONAL EXPENSE,ODHR,NAME / DESCRIPTION WITHHELD,EXPS2738,102.83
DBT,ACAS,20/11/2023,PERSONAL EXPENSE,ODHR,NAME / DESCRIPTION WITHHELD,EXPS2738,5
DBT,ACAS,20/11/2023,PERSONAL EXPENSE,ODHR,NAME / DESCRIPTION WITHHELD,EXPS2738,35
DBT,ACAS,20/11/2023,PERSONAL EXPENSE,ODHR,NAME / DESCRIPTION WITHHELD,EXPS2738,10
DBT,ACAS,20/11/2023,PERSONAL EXPENSE,ODHR,NAME / DESCRIPTION WITHHELD,EXPS2738,15
DBT,ACAS,20/11/2023,PERSONAL EXPENSE,ODHR,NAME / DESCRIPTION WITHHELD,EXPS2738,10
DBT,ACAS,20/11/2023,PERSONAL EXPENSE,ODHR,NAME / DESCRIPTION WITHHELD,EXPS2738,105
DBT,ACAS,20/11/2023,PERSONAL EXPENSE,ODHR,NAME / DESCRIPTION WITHHELD,EXPS2738,10
DBT,ACAS,20/11/2023,PERSONAL EXPENSE,STRATEGY,NAME / DESCRIPTION WITHHELD,EXPS2739,18
DBT,ACAS,20/11/2023,PERSONAL EXPENSE,STRATEGY,NAME / DESCRIPTION WITHHELD,EXPS2739,59.94
DBT,ACAS,20/11/2023,PERSONAL EXPENSE,STRATEGY,NAME / DESCRIPTION WITHHELD,EXPS2739,5.5
DBT,ACAS,20/11/2023,PERSONAL EXPENSE,STRATEGY,NAME / DESCRIPTION WITHHELD,EXPS2739,169
DBT,ACAS,21/11/2023,PERSONAL EXPENSE,DISPUTE,NAME / DESCRIPTION WITHHELD,EXPS2744,"1,286.14"
DBT,ACAS,26/11/2023,PERSONAL EXPENSE,ADVICE,NAME / DESCRIPTION WITHHELD,EXPS2760,360.9
DBT,ACAS,26/11/2023,PERSONAL EXPENSE,ADVICE,NAME / DESCRIPTION WITHHELD,EXPS2760,27.6
DBT,ACAS,26/11/2023,PERSONAL EXPENSE,ADVICE,NAME / DESCRIPTION WITHHELD,EXPS2760,16
DBT,ACAS,26/11/2023,PERSONAL EXPENSE,ADVICE,NAME / DESCRIPTION WITHHELD,EXPS2760,40
DBT,ACAS,26/11/2023,PERSONAL EXPENSE,ADVICE,NAME / DESCRIPTION WITHHELD,EXPS2760,30
DBT,ACAS,28/11/2023,PERSONAL EXPENSE,ADVICE,NAME / DESCRIPTION WITHHELD,EXPS2765,220.05
DBT,ACAS,28/11/2023,PERSONAL EXPENSE,ADVICE,NAME / DESCRIPTION WITHHELD,EXPS2765,30
DBT,ACAS,28/11/2023,PERSONAL EXPENSE,ADVICE,NAME / DESCRIPTION WITHHELD,EXPS2765,30
DBT,ACAS,28/11/2023,PERSONAL EXPENSE,ADVICE,NAME / DESCRIPTION WITHHELD,EXPS2784,250.2
DBT,ACAS,28/11/2023,PERSONAL EXPENSE,ADVICE,NAME / DESCRIPTION WITHHELD,EXPS2784,1.8
DBT,ACAS,28/11/2023,PERSONAL EXPENSE,ADVICE,NAME / DESCRIPTION WITHHELD,EXPS2784,9
DBT,ACAS,28/11/2023,PERSONAL EXPENSE,ADVICE,NAME / DESCRIPTION WITHHELD,EXPS2784,20
DBT,ACAS,28/11/2023,PERSONAL EXPENSE,ADVICE,NAME / DESCRIPTION WITHHELD,EXPS2784,20
